﻿Body Name,Body,Service Division Label,Service Division Code,Organisational Unit,Expenditure Category,Expenditure Code,CIPFA detailed expediture type,CIPFA detailed expediture code,Narrative,Date,Transaction number,Net Amount,Capital and Revenue,Supplier Name,Supplier ID,,
Chorley Borough Council,http://statistics.data.gov.uk/id/local-authority/30UE,Building Control,1090,PLAN - Planning & Development,Misc Expenses,40200,Miscellaneous Expenses,5034,Building Control structural engineer consultancy fees- financial year 01.04.2021 - 31.03.2022,27/05/2022,0166718,£262.50,Revenue,Adrian Fitch,83125,,
Chorley Borough Council,http://statistics.data.gov.uk/id/local-authority/30UE,Unapportionable Central OHeads,1009,CUST - Customer & Digital,Bank Charges,40151,Miscellaneous Expenses,5034,fee,13/05/2022,0167369,£10.00,Revenue,Allpay Net Ltd,17242,,
Chorley Borough Council,http://statistics.data.gov.uk/id/local-authority/30UE,Unapportionable Central OHeads,1009,CUST - Customer & Digital,Bank Charges,40151,Miscellaneous Expenses,5034,post office,13/05/2022,0167369,£642.16,Revenue,Allpay Net Ltd,17242,,
Chorley Borough Council,http://statistics.data.gov.uk/id/local-authority/30UE,Unapportionable Central OHeads,1009,CUST - Customer & Digital,Bank Charges,40151,Miscellaneous Expenses,5034,paypoint,13/05/2022,0167369,£55.64,Revenue,Allpay Net Ltd,17242,,
Chorley Borough Council,http://statistics.data.gov.uk/id/local-authority/30UE,Unapportionable Central OHeads,1009,CUST - Customer & Digital,Bank Charges,40151,Miscellaneous Expenses,5034,fee,13/05/2022,0167370,£10.00,Revenue,Allpay Net Ltd,17242,,
Chorley Borough Council,http://statistics.data.gov.uk/id/local-authority/30UE,Unapportionable Central OHeads,1009,CUST - Customer & Digital,Bank Charges,40151,Miscellaneous Expenses,5034,postoffice,13/05/2022,0167370,£661.02,Revenue,Allpay Net Ltd,17242,,
Chorley Borough Council,http://statistics.data.gov.uk/id/local-authority/30UE,Unapportionable Central OHeads,1009,CUST - Customer & Digital,Bank Charges,40151,Miscellaneous Expenses,5034,paypoint,13/05/2022,0167370,£207.38,Revenue,Allpay Net Ltd,17242,,
Chorley Borough Council,http://statistics.data.gov.uk/id/local-authority/30UE,Unapportionable Central OHeads,1009,CUST - Customer & Digital,Bank Charges,40151,Miscellaneous Expenses,5034,webconn,13/05/2022,0167370,£46.00,Revenue,Allpay Net Ltd,17242,,
Chorley Borough Council,http://statistics.data.gov.uk/id/local-authority/30UE,Central Support Services,1009,EARL - Communities,External Contractor,40198,Miscellaneous Expenses,5034,Pest Control Contract,06/05/2022,0166842,"£2,002.29",Revenue,ALPHA PEST CONTROL LIMITED,18208,,
Chorley Borough Council,http://statistics.data.gov.uk/id/local-authority/30UE,Central Support Services,1009,EARL - Communities,External Contractor,40198,Miscellaneous Expenses,5034,Rats and Mice Pest Control for Chorley Council,20/05/2022,0167209,"£2,395.77",Revenue,ALPHA PEST CONTROL LIMITED,18208,,
Chorley Borough Council,http://statistics.data.gov.uk/id/local-authority/30UE,Capital,Capital,GROW - Commercial & Property,Other Contractor,03012,Capital Expenditure,Capital,MW Ext Unit 4 Fire alarm issues at new unit,06/05/2022,0166625,"£1,860.92",Capital,Amalgamated Ltd,78289,,
Chorley Borough Council,http://statistics.data.gov.uk/id/local-authority/30UE,Business Support,1095,GROW - Commercial & Property,Burglar Alarms & Security Systems,20075,Fixtures and Fittings,5010,White Hart Installation on new monitoring alarms,06/05/2022,0166628,"£1,875.00",Revenue,Amalgamated Ltd,78289,,
Chorley Borough Council,http://statistics.data.gov.uk/id/local-authority/30UE,Central Support Services,1009,CUST - Customer & Digital,Computer Software-Additional,40102,Communication and Computing,5028,Amazon AWS web services - REDACTED Cloud charges March 2022,20/05/2022,0165724,"£4,444.54",Revenue,Amazon Web Services EMEA SARL,80604,,
Chorley Borough Council,http://statistics.data.gov.uk/id/local-authority/30UE,Central Support Services,1009,EARL - Communities,External Contractor,40198,Miscellaneous Expenses,5034,Collection and Kennelling of Strays for March 2022,06/05/2022,0166935,£515.20,Revenue,Animal Wardens Ltd,80965,,
Chorley Borough Council,http://statistics.data.gov.uk/id/local-authority/30UE,Unapportionable Central OHeads,1009,GOVN - Policy & Governance,Publicity - Advertising,40157,Miscellaneous Expenses,5034,"Renewal of the hosting/server space for the WordPress websites (e.g. Chorley Flower Show, Check out Chorley, Astley Hall, etc)",20/05/2022,0167252,£297.55,Revenue,ANS Group Limited,74638,,
Chorley Borough Council,http://statistics.data.gov.uk/id/local-authority/30UE,Tourism,1039,GOVN - Policy & Governance,Misc Expenses,40200,Miscellaneous Expenses,5034,Award for Personal Alcohol License Holder - Tuesday 10 May 2022 x5,27/05/2022,0167612,£500.00,Revenue,AP Training Solutions,85202,,
Chorley Borough Council,http://statistics.data.gov.uk/id/local-authority/30UE,Planning Policy,1092,EARL - Communities,Consultants` Fees,40077,Services,5027,Local Plan Support: GTAA Review & Policy Development,13/05/2022,0167302,"£2,500.00",Revenue,Arc4,60831,,
Chorley Borough Council,http://statistics.data.gov.uk/id/local-authority/30UE,Corporate Management,1008,Chief Executive,Employee Related Insurance,18003,Indirect Employee Expenses,5002,"Property Damage Protector Insurance UK - Term: 18/03/22 - 31/12/22 Premium, Insurance Premium, Administration Fee",06/05/2022,0167103,"£1,904.66",Revenue,Arthur J. Gallagher,83531,,
Chorley Borough Council,http://statistics.data.gov.uk/id/local-authority/30UE,Corporate Management,1008,Chief Executive,Employee Related Insurance,18003,Indirect Employee Expenses,5002,Fine Arts Cover - Ecclesiastical Insurance Office Plc via Risk Management Partners Ltd Term: 01/01/22 - 31/12/22,06/05/2022,0167104,"£7,973.28",Revenue,Arthur J. Gallagher,83531,,
Chorley Borough Council,http://statistics.data.gov.uk/id/local-authority/30UE,Corporate Management,1008,Chief Executive,Employee Related Insurance,18003,Indirect Employee Expenses,5002,Terrorism CSL 1084 Chaucer Syndicates 1084 via Arthur J Gallagher (UK) Ltd 01/01/22 - 31/12/31,06/05/2022,0167105,"£10,017.55",Revenue,Arthur J. Gallagher,83531,,
Chorley Borough Council,http://statistics.data.gov.uk/id/local-authority/30UE,Corporate Management,1008,Chief Executive,Employee Related Insurance,18003,Indirect Employee Expenses,5002,Combined Business Travel/PA/Sickness American International Group UK Limited Term: 01/01/22 - 31/12/22,06/05/2022,0167106,£442.40,Revenue,Arthur J. Gallagher,83531,,
Chorley Borough Council,http://statistics.data.gov.uk/id/local-authority/30UE,Service Management & Support,1009,CUST - Customer & Digital,External Contractor,40198,Miscellaneous Expenses,5034,"Removal of shelter. Specification: Stainless steel framing, Powder coated, Flat Composite roof, Polycarbonate Glazing",13/05/2022,0167421,"£3,820.00",Revenue,Autocross Euroshel Ltd,77509,,
Chorley Borough Council,http://statistics.data.gov.uk/id/local-authority/30UE,Business Support,1095,GROW - Commercial & Property,Cleaning Services,20033,Cleaning and Domestic Supplies,5012,Cleaning of car spaces on Flat Iron as discussed with NAME REDACTED. To be carried out in the evening,13/05/2022,0167306,£750.00,Revenue,AWAY SERVICES GROUP LTD ,83471,,
Chorley Borough Council,http://statistics.data.gov.uk/id/local-authority/30UE,Central Support Services,1009,PLAN - Planning & Development,Professional Fees,40063,Services,5027,For the arrangements of a public health funeral for the late NAME REDACTED 07.04.2022,27/05/2022,0167700,"£1,000.00",Revenue,B Livesey Limited,17943,,
Chorley Borough Council,http://statistics.data.gov.uk/id/local-authority/30UE,Service Management & Support,1009,CUST - Customer & Digital,Hire Of Vehicles and Plant,30028,Contrct Hire & Operating Lease,5018,As per submission to ITT invitation to Tender for the contract hire with service and maintenance of Grounds Maintenance Machinery,13/05/2022,0167257,"£1,242.40",Revenue,Balmers Garden Machinery,17075,,
Chorley Borough Council,http://statistics.data.gov.uk/id/local-authority/30UE,Corporate Management,1008,GOVN - Policy & Governance,Bank Charges,40151,Miscellaneous Expenses,5034,31 mar,30/05/2022,0167259,£643.97,Revenue,Barclaycard Merchant Services,61601,,
Chorley Borough Council,http://statistics.data.gov.uk/id/local-authority/30UE,Corporate Management,1008,GOVN - Policy & Governance,Bank Charges,40151,Miscellaneous Expenses,5034,31 mar 22,30/05/2022,0167260,£217.00,Revenue,Barclaycard Merchant Services,61601,,
Chorley Borough Council,http://statistics.data.gov.uk/id/local-authority/30UE,Corporate Management,1008,GOVN - Policy & Governance,Bank Charges,40151,Miscellaneous Expenses,5034,,30/05/2022,0167260,£130.30,Revenue,Barclaycard Merchant Services,61601,,
Chorley Borough Council,http://statistics.data.gov.uk/id/local-authority/30UE,Corporate Management,1008,GOVN - Policy & Governance,Bank Charges,40151,Miscellaneous Expenses,5034,,30/05/2022,0167261,"£2,999.60",Revenue,Barclaycard Merchant Services,61601,,
Chorley Borough Council,http://statistics.data.gov.uk/id/local-authority/30UE,Corporate Management,1008,GOVN - Policy & Governance,Bank Charges,40151,Miscellaneous Expenses,5034,,30/05/2022,0167262,"£1,644.04",Revenue,Barclaycard Merchant Services,61601,,
Chorley Borough Council,http://statistics.data.gov.uk/id/local-authority/30UE,Corporate Management,1008,GOVN - Policy & Governance,Bank Charges,40151,Miscellaneous Expenses,5034,,30/05/2022,0167440,£15.00,Revenue,Barclaycard Merchant Services,61601,,
Chorley Borough Council,http://statistics.data.gov.uk/id/local-authority/30UE,Corporate Management,1008,GOVN - Policy & Governance,Bank Charges,40151,Miscellaneous Expenses,5034,,30/05/2022,0167440,"£1,163.21",Revenue,Barclaycard Merchant Services,61601,,
Chorley Borough Council,http://statistics.data.gov.uk/id/local-authority/30UE,Corporate Management,1008,GOVN - Policy & Governance,Bank Charges,40151,Miscellaneous Expenses,5034,,30/05/2022,0167441,£15.00,Revenue,Barclaycard Merchant Services,61601,,
Chorley Borough Council,http://statistics.data.gov.uk/id/local-authority/30UE,Corporate Management,1008,GOVN - Policy & Governance,Bank Charges,40151,Miscellaneous Expenses,5034,,30/05/2022,0167441,"£2,451.62",Revenue,Barclaycard Merchant Services,61601,,
Chorley Borough Council,http://statistics.data.gov.uk/id/local-authority/30UE,Corporate Management,1008,GOVN - Policy & Governance,Bank Charges,40151,Miscellaneous Expenses,5034,,30/05/2022,0167442,£232.00,Revenue,Barclaycard Merchant Services,61601,,
Chorley Borough Council,http://statistics.data.gov.uk/id/local-authority/30UE,Corporate Management,1008,GOVN - Policy & Governance,Bank Charges,40151,Miscellaneous Expenses,5034,,30/05/2022,0167442,£168.78,Revenue,Barclaycard Merchant Services,61601,,
Chorley Borough Council,http://statistics.data.gov.uk/id/local-authority/30UE,Corporate Management,1008,GOVN - Policy & Governance,Bank Charges,40151,Miscellaneous Expenses,5034,,30/05/2022,0167445,£15.00,Revenue,Barclaycard Merchant Services,61601,,
Chorley Borough Council,http://statistics.data.gov.uk/id/local-authority/30UE,Corporate Management,1008,GOVN - Policy & Governance,Bank Charges,40151,Miscellaneous Expenses,5034,,30/05/2022,0167445,£471.68,Revenue,Barclaycard Merchant Services,61601,,
Chorley Borough Council,http://statistics.data.gov.uk/id/local-authority/30UE,Corporate Management,1008,GOVN - Policy & Governance,Bank Charges,40151,Miscellaneous Expenses,5034,30 apr 22,30/05/2022,0167610,£205.00,Revenue,Barclaycard Merchant Services,61601,,
Chorley Borough Council,http://statistics.data.gov.uk/id/local-authority/30UE,Corporate Management,1008,GOVN - Policy & Governance,Bank Charges,40151,Miscellaneous Expenses,5034,,30/05/2022,0167610,"£3,546.53",Revenue,Barclaycard Merchant Services,61601,,
Chorley Borough Council,http://statistics.data.gov.uk/id/local-authority/30UE,Corporate Management,1008,GOVN - Policy & Governance,Bank Charges,40151,Miscellaneous Expenses,5034,30 apr 2022,30/05/2022,0167613,"£1,749.21",Revenue,Barclaycard Merchant Services,61601,,
Chorley Borough Council,http://statistics.data.gov.uk/id/local-authority/30UE,Corporate Management,1008,GOVN - Policy & Governance,Bank Charges,40151,Miscellaneous Expenses,5034,30 apr 2022,30/05/2022,0167614,£561.29,Revenue,Barclaycard Merchant Services,61601,,
Chorley Borough Council,http://statistics.data.gov.uk/id/local-authority/30UE,Corporate Management,1008,GOVN - Policy & Governance,Bank Charges,40151,Miscellaneous Expenses,5034,30 apr 22,30/05/2022,0167615,£217.00,Revenue,Barclaycard Merchant Services,61601,,
Chorley Borough Council,http://statistics.data.gov.uk/id/local-authority/30UE,Corporate Management,1008,GOVN - Policy & Governance,Bank Charges,40151,Miscellaneous Expenses,5034,,30/05/2022,0167615,£141.42,Revenue,Barclaycard Merchant Services,61601,,
Chorley Borough Council,http://statistics.data.gov.uk/id/local-authority/30UE,Central Support Services,1009,GROW - Commercial & Property,Professional Fees,40063,Services,5027,"Undertaking of a costs exercise for the enabling works - CBC land (site), Cowling Road, Chorley",13/05/2022,0167201,"£10,250.00",Revenue,BDP,77191,,
Chorley Borough Council,http://statistics.data.gov.uk/id/local-authority/30UE,Unapportionable Central OHeads,1009,GROW - Commercial & Property,Planned Maintenance,20006,Repairs Maintenance & Alts,5005,Annual Reinspection of all known asbestos containing materials from the Management Report,13/05/2022,0166148,£569.00,Revenue,Bradley Environmental Consultants Ltd,77154,,
Chorley Borough Council,http://statistics.data.gov.uk/id/local-authority/30UE,Business Support,1095,GROW - Commercial & Property,Electricity,20013,Energy Costs,5006,1/3 to 31/3/22,06/05/2022,0167161,£751.81,Revenue,British Gas Business,22242,,
Chorley Borough Council,http://statistics.data.gov.uk/id/local-authority/30UE,Central Support Services,1009,CUST - Customer & Digital,Telephones - Rentals,40083,Communication and Computing,5028,charges,20/05/2022,0167617,"£3,728.26",Revenue,British Telecommunications Plc,17131,,
Chorley Borough Council,http://statistics.data.gov.uk/id/local-authority/30UE,Central Support Services,1009,CUST - Customer & Digital,Telephones - Other,40085,Communication and Computing,5028,one off,20/05/2022,0167617,£125.00,Revenue,British Telecommunications Plc,17131,,
Chorley Borough Council,http://statistics.data.gov.uk/id/local-authority/30UE,Central Support Services,1009,CUST - Customer & Digital,Telephones - Calls,40084,Communication and Computing,5028,adj,20/05/2022,0167617,£129.00,Revenue,British Telecommunications Plc,17131,,
Chorley Borough Council,http://statistics.data.gov.uk/id/local-authority/30UE,Central Support Services,1009,CUST - Customer & Digital,Telephones - Calls,40084,Communication and Computing,5028,use,20/05/2022,0167617,£80.41,Revenue,British Telecommunications Plc,17131,,
Chorley Borough Council,http://statistics.data.gov.uk/id/local-authority/30UE,Capital,Capital,GROW - Commercial & Property,Main Contractor,03007,Capital Expenditure,Capital,Astley Hall Renovation and Conservation Project works - new PO as other lapsed financial years,20/05/2022,0167487,"£32,659.60",Capital,Bullen Conservation Ltd,68424,,
Chorley Borough Council,http://statistics.data.gov.uk/id/local-authority/30UE,Capital,Capital,GOVN - Policy & Governance,Other Contractor,03012,Capital Expenditure,Capital,"Quotation E03213 41 x medium stanchions grey, 11 x small stanchions grey, 100m grey bungee cord, 10m grey bungee cord",13/05/2022,0167321,"£4,937.00",Capital,BWD Limited,78590,,
Chorley Borough Council,http://statistics.data.gov.uk/id/local-authority/30UE,Capital,Capital,GOVN - Policy & Governance,Other Contractor,03012,Capital Expenditure,Capital,6 armchairs in tan echo leather. ,13/05/2022,0167324,"£3,360.24",Capital,BWD Limited,78590,,
Chorley Borough Council,http://statistics.data.gov.uk/id/local-authority/30UE,Service Management & Support,1009,CUST - Customer & Digital,Supplies-Grounds Maintenance,40025,"Equipment, Furniture & Materia",5023,"60X Hanson fast set Post Mix, 12X Hanson Kiln dried sand – 25kg maxi pack, 5X Cottam Brush 24” platform",27/05/2022,0167708,£258.12,Revenue,C & W BERRY LIMITED,18180,,
Chorley Borough Council,http://statistics.data.gov.uk/id/local-authority/30UE,Capital,Capital,EARL - Communities,Sub Contractor,03008,Capital Expenditure,Capital,"Reduction of tall conifer hedge on the boundary of ADDRESSES REDACTED, paid by Chorley Council as a one off.",13/05/2022,0167379,"£4,800.00",Capital,C.P. Grimshaw Tree and Woodland Services,85006,,
Chorley Borough Council,http://statistics.data.gov.uk/id/local-authority/30UE,Unapportionable Central OHeads,1009,GOVN - Policy & Governance,Publicity - Advertising,40157,Miscellaneous Expenses,5034,Printed materials to be produced for Campaign for Real Ale - Chorley Ale Trail,20/05/2022,0167507,£399.00,Revenue,Campaign for Real Ale,85138,,
Chorley Borough Council,http://statistics.data.gov.uk/id/local-authority/30UE,Corporate Management,1008,GROW - Commercial & Property,Exhibitions & Special Events,40158,Miscellaneous Expenses,5034,"Easter Entertainment:Mad Hatters Sunflower Planting Teaparty, promotional staff, project management & Easter Craft workshop",06/05/2022,0167213,"£3,790.00",Revenue,Candy House Events and Entertainment,85030,,
Chorley Borough Council,http://statistics.data.gov.uk/id/local-authority/30UE,Building Control,1090,PLAN - Planning & Development,Agency Staff,13000,Direct Employee Expenses,5001,Agency fees for Building Control Officer - NAME REDACTED - ongoing contract,13/05/2022,0167120,"£1,320.00",Revenue,Carrington West Ltd,83124,,
Chorley Borough Council,http://statistics.data.gov.uk/id/local-authority/30UE,Building Control,1090,PLAN - Planning & Development,Agency Staff,13000,Direct Employee Expenses,5001,Agency fees for Building Control Officer - NAME REDACTED - ongoing contract,13/05/2022,0167121,"£1,608.00",Revenue,Carrington West Ltd,83124,,
Chorley Borough Council,http://statistics.data.gov.uk/id/local-authority/30UE,Building Control,1090,PLAN - Planning & Development,Agency Staff,13000,Direct Employee Expenses,5001,Agency fees for Building Control Officer - NAME REDACTED - ongoing contract,13/05/2022,0167255,"£1,512.00",Revenue,Carrington West Ltd,83124,,
Chorley Borough Council,http://statistics.data.gov.uk/id/local-authority/30UE,Building Control,1090,PLAN - Planning & Development,Agency Staff,13000,Direct Employee Expenses,5001,Agency fees for Building Control Officer - NAME REDACTED - ongoing contract,20/05/2022,0167347,"£1,560.00",Revenue,Carrington West Ltd,83124,,
Chorley Borough Council,http://statistics.data.gov.uk/id/local-authority/30UE,Unapportionable Central OHeads,1009,GOVN - Policy & Governance,Agency Staff,13000,Direct Employee Expenses,5001,NAME REDACTED 3 Month Extension Apr - Jun 2022,13/05/2022,0167373,"£2,592.50",Revenue,Castlefield Recruitment Limited,80454,,
Chorley Borough Council,http://statistics.data.gov.uk/id/local-authority/30UE,Unapportionable Central OHeads,1009,GROW - Commercial & Property,General Repairs - Reactive,20004,Repairs Maintenance & Alts,5005,"Primrose Gardens ADDRESS REDACTED Full deep clean, sanitisation and disinfection of the flat on the ground floor ",27/05/2022,0167692,"£1,131.50",Revenue,Castus Solutions Limited,78812,,
Chorley Borough Council,http://statistics.data.gov.uk/id/local-authority/30UE,Corporate Management,1008,GOVN - Policy & Governance,Tools & Equipment - Purchase,40003,"Equipment, Furniture & Materia",5023,Yellow and Black Pull out belt barrier with yellow posts,27/05/2022,0166281,£305.68,Revenue,Central Source Ltd T/A The Workplace Depot,80396,,
Chorley Borough Council,http://statistics.data.gov.uk/id/local-authority/30UE,Democratic Represent and  Mgnt,1007,GROW - Commercial & Property,Salting & Gritting,20059,Grounds Maintenance Costs,5013,"Seasonal Winter Gritting service for All Seasons Leisure Centre site Main carpark, access road and a front entrance to building",06/05/2022,0166445,£189.69,Revenue,Chameleon Facilities Limited,78464,,
Chorley Borough Council,http://statistics.data.gov.uk/id/local-authority/30UE,Recreation & Sport,1037,GROW - Commercial & Property,Salting & Gritting,20059,Grounds Maintenance Costs,5013,Seasonal Winter Gritting service for Brinscall Pool site Carpark and front entrance including footpath ,06/05/2022,0166445,£171.24,Revenue,Chameleon Facilities Limited,78464,,
Chorley Borough Council,http://statistics.data.gov.uk/id/local-authority/30UE,Recreation & Sport,1037,GROW - Commercial & Property,Salting & Gritting,20059,Grounds Maintenance Costs,5013,Seasonal Winter Gritting service for Clayton Green Leisure centre.,06/05/2022,0166445,£177.96,Revenue,Chameleon Facilities Limited,78464,,
Chorley Borough Council,http://statistics.data.gov.uk/id/local-authority/30UE,Democratic Represent and  Mgnt,1007,GROW - Commercial & Property,Salting & Gritting,20059,Grounds Maintenance Costs,5013,"Seasonal Winter Gritting service for All Seasons Leisure Centre site Main carpark, access road and a front entrance to building",06/05/2022,0166446,£189.69,Revenue,Chameleon Facilities Limited,78464,,
Chorley Borough Council,http://statistics.data.gov.uk/id/local-authority/30UE,Recreation & Sport,1037,GROW - Commercial & Property,Salting & Gritting,20059,Grounds Maintenance Costs,5013,Seasonal Winter Gritting service for Brinscall Pool Carpark and front entrance including footpath from carpark to main entrance,06/05/2022,0166446,£171.24,Revenue,Chameleon Facilities Limited,78464,,
Chorley Borough Council,http://statistics.data.gov.uk/id/local-authority/30UE,Recreation & Sport,1037,GROW - Commercial & Property,Salting & Gritting,20059,Grounds Maintenance Costs,5013,Seasonal Winter Gritting service for Clayton Green Leisure centre.,06/05/2022,0166446,£177.96,Revenue,Chameleon Facilities Limited,78464,,
Chorley Borough Council,http://statistics.data.gov.uk/id/local-authority/30UE,Regulatory Services,1048,PLAN - Planning & Development,Taxi Testing & Vehicle Safety Report,40234,Services,5027,mot,13/05/2022,0167153,"£1,097.00",Revenue,Chorley Autocare Ltd,17110,,
Chorley Borough Council,http://statistics.data.gov.uk/id/local-authority/30UE,Regulatory Services,1048,PLAN - Planning & Development,Taxi Testing & Vehicle Safety Report,40234,Services,5027,taxi test,13/05/2022,0167153,£171.00,Revenue,Chorley Autocare Ltd,17110,,
Chorley Borough Council,http://statistics.data.gov.uk/id/local-authority/30UE,Recreation & Sport,1037,GOVN - Policy & Governance,External Contractors,50008,Private Contractors,5042,qtr 1 fee,30/05/2022,0166749,"£82,750.00",Revenue,Chorley Leisure Ltd,83376,,
Chorley Borough Council,http://statistics.data.gov.uk/id/local-authority/30UE,Other Short Term Creditors,,GOVN - Policy & Governance,General Balances,00100,Balance Sheet,Balance,DD Inc,30/05/2022,0167375,"£5,037.19",Revenue,Chorley Leisure Ltd,83376,,
Chorley Borough Council,http://statistics.data.gov.uk/id/local-authority/30UE,Other Short Term Creditors,,GOVN - Policy & Governance,Leisure - DD,00142,Balance Sheet,Balance,DD Inc,30/05/2022,0167375,"£87,468.13",Revenue,Chorley Leisure Ltd,83376,,
Chorley Borough Council,http://statistics.data.gov.uk/id/local-authority/30UE,Service Management & Support,1009,CUST - Customer & Digital,Vehicles and Plant Maintenance,30045,Direct Transport Costs,5016,VIS REDACTED 2 x new front tyres 2x Rear tyres & Disposal,13/05/2022,0167409,"£2,359.17",Revenue,Chorley Tyres,53719,,
Chorley Borough Council,http://statistics.data.gov.uk/id/local-authority/30UE,Central Support Services,1009,EARL - Communities,Children's Activities,40188,Miscellaneous Expenses,5034,Co-ordination of HAF programme for Feb/March,06/05/2022,0166990,"£1,680.75",Revenue,Chorley Youth Zone,77339,,
Chorley Borough Council,http://statistics.data.gov.uk/id/local-authority/30UE,Central Support Services,1009,EARL - Communities,Children's Activities,40188,Miscellaneous Expenses,5034,"Additional Holiday, Activity and Food (HAF) delivery allocation for Summer and Christmas",06/05/2022,0166991,"£24,130.00",Revenue,Chorley Youth Zone,77339,,
Chorley Borough Council,http://statistics.data.gov.uk/id/local-authority/30UE,Homelessness,1075,EARL - Communities,External Contractor,40198,Miscellaneous Expenses,5034,Chorley Council/Inspire Youth Zone Youth Hub Project,06/05/2022,0166999,"£6,869.99",Revenue,Chorley Youth Zone,77339,,
Chorley Borough Council,http://statistics.data.gov.uk/id/local-authority/30UE,Economic Development,1096,GROW - Commercial & Property,Fixtures & Fittings - Repair/Mtnce,20028,Fixtures and Fittings,5010,Install approx. 1500 metres of summer bunting around Chorley Town Centre,20/05/2022,0167504,"£3,000.00",Revenue,City Illuminations Ltd,77388,,
Chorley Borough Council,http://statistics.data.gov.uk/id/local-authority/30UE,Economic Development,1096,GROW - Commercial & Property,Fixtures & Fittings - Repair/Mtnce,20028,Fixtures and Fittings,5010,"Costs for Anchor Testing to approx.. 80nr anchors as in previous years A report will be provided, any failures will be highlighted",20/05/2022,0167505,"£2,000.00",Revenue,City Illuminations Ltd,77388,,
Chorley Borough Council,http://statistics.data.gov.uk/id/local-authority/30UE,Unapportionable Central OHeads,1009,GOVN - Policy & Governance,Computer Software-Additional,40102,Communication and Computing,5028,"Chorley Cashbook Management Module for 3 x Additional Companies: Annual Maintenance & Support, Consultancy & Software",13/05/2022,0166849,"£13,992.00",Revenue,Civica UK Limited,17463,,
Chorley Borough Council,http://statistics.data.gov.uk/id/local-authority/30UE,Unapportionable Central OHeads,1009,GOVN - Policy & Governance,Computer Software-Additional,40102,Communication and Computing,5028,Additional Days Consultancy for CBM Implementation,13/05/2022,0166850,"£3,180.00",Revenue,Civica UK Limited,17463,,
Chorley Borough Council,http://statistics.data.gov.uk/id/local-authority/30UE,Unapportionable Central OHeads,1009,GOVN - Policy & Governance,Training Course Fees,17010,Indirect Employee Expenses,5002,"Making Tax Digital Training, Half Day",06/05/2022,0167183,£795.00,Revenue,Civica UK Limited,17463,,
Chorley Borough Council,http://statistics.data.gov.uk/id/local-authority/30UE,Unapportionable Central OHeads,1009,GOVN - Policy & Governance,Computer Software-Additional,40102,Communication and Computing,5028,"Chorley Cashbook Management Module for 3 x Additional Companies: Annual Maintenance & Support, Consultancy & Software",13/05/2022,0167319,"£1,119.00",Revenue,Civica UK Limited,17463,,
Chorley Borough Council,http://statistics.data.gov.uk/id/local-authority/30UE,Recognised Cap Grants & Conts,,PLAN - Planning & Development,Contributions Parish Councils,40144,Grants and Subscriptions,5031,receipts,13/05/2022,0166851,£704.30,Revenue,Clayton-Le-Woods Parish Coun.,17024,,
Chorley Borough Council,http://statistics.data.gov.uk/id/local-authority/30UE,Capital,Capital,EARL - Communities,Main Contractor,03007,Capital Expenditure,Capital,Landscape Improvement works at The Hawthorns.,20/05/2022,0166738,"£8,600.00",Capital,Conservation Contracts North West,20520,,
Chorley Borough Council,http://statistics.data.gov.uk/id/local-authority/30UE,Central Support Services,1009,CUST - Customer & Digital,Items For Resale,40027,"Equipment, Furniture & Materia",5023,"Green 240 L wheeled bin, Chorley logo print to body in white, standard axles, 200MM black wheels.",13/05/2022,0167318,"£10,125.00",Revenue,Contenur Uk Ltd,82451,,
Chorley Borough Council,http://statistics.data.gov.uk/id/local-authority/30UE,Recognised Cap Grants & Conts,,PLAN - Planning & Development,Contributions Parish Councils,40144,Grants and Subscriptions,5031,receipts,13/05/2022,0166852,"£2,214.88",Revenue,Coppull Parish Council,17025,,
Chorley Borough Council,http://statistics.data.gov.uk/id/local-authority/30UE,Unapportionable Central OHeads,1009,GROW - Commercial & Property,Planned Maintenance,20006,Repairs Maintenance & Alts,5005,Town Hall Lancastrian Test and Inspection ppm,06/05/2022,0166614,£592.62,Revenue,Corlett Electrical Eng Co Ltd,16271,,
Chorley Borough Council,http://statistics.data.gov.uk/id/local-authority/30UE,Service Management & Support,1009,CUST - Customer & Digital,Supplies-Grounds Maintenance,40025,"Equipment, Furniture & Materia",5023,As per quotation Q12707,27/05/2022,0167468,£447.36,Revenue,Cornthwaite Group,78492,,
Chorley Borough Council,http://statistics.data.gov.uk/id/local-authority/30UE,Central Support Services,1009,GROW - Commercial & Property,Gas,20014,Energy Costs,5006,mar-apr,13/05/2022,0167284,£277.31,Revenue,Corona Energy Retail 2 Ltd,67249,,
Chorley Borough Council,http://statistics.data.gov.uk/id/local-authority/30UE,Central Support Services,1009,GROW - Commercial & Property,Gas,20014,Energy Costs,5006,mar-apr,13/05/2022,0167285,"£1,181.00",Revenue,Corona Energy Retail 2 Ltd,67249,,
Chorley Borough Council,http://statistics.data.gov.uk/id/local-authority/30UE,Unapportionable Central OHeads,1009,GROW - Commercial & Property,Gas,20014,Energy Costs,5006,mar-apr,13/05/2022,0167286,£984.28,Revenue,Corona Energy Retail 2 Ltd,67249,,
Chorley Borough Council,http://statistics.data.gov.uk/id/local-authority/30UE,Open Spaces,1038,GROW - Commercial & Property,Gas,20014,Energy Costs,5006,mar-apr,13/05/2022,0167287,£771.44,Revenue,Corona Energy Retail 2 Ltd,67249,,
Chorley Borough Council,http://statistics.data.gov.uk/id/local-authority/30UE,Homelessness,1075,GROW - Commercial & Property,Gas,20014,Energy Costs,5006,mar-apr,13/05/2022,0167290,"£1,068.37",Revenue,Corona Energy Retail 2 Ltd,67249,,
Chorley Borough Council,http://statistics.data.gov.uk/id/local-authority/30UE,Open Spaces,1038,GROW - Commercial & Property,Gas,20014,Energy Costs,5006,mar - apr22,13/05/2022,0167293,£771.44,Revenue,Corona Energy Retail 2 Ltd,67249,,
Chorley Borough Council,http://statistics.data.gov.uk/id/local-authority/30UE,Democratic Represent and  Mgnt,1007,GROW - Commercial & Property,Gas,20014,Energy Costs,5006,mar-apr,13/05/2022,0167294,"£1,143.89",Revenue,Corona Energy Retail 2 Ltd,67249,,
Chorley Borough Council,http://statistics.data.gov.uk/id/local-authority/30UE,Democratic Represent and  Mgnt,1007,GROW - Commercial & Property,Gas,20014,Energy Costs,5006,mar-apr,13/05/2022,0167296,£322.65,Revenue,Corona Energy Retail 2 Ltd,67249,,
Chorley Borough Council,http://statistics.data.gov.uk/id/local-authority/30UE,Central Support Services,1009,CUST - Customer & Digital,Items For Resale,40027,"Equipment, Furniture & Materia",5023,300 X 240L Grey wheeled bins complete complete with Chorley logo and RFID chip.,13/05/2022,0167448,"£5,820.00",Revenue,Craemer UK Ltd,64712,,
Chorley Borough Council,http://statistics.data.gov.uk/id/local-authority/30UE,Elections,1012,GOVN - Policy & Governance,Rent/Hire Of Premises,20017,Premises Rents,5007,room hire for polling station 5 May 2022,20/05/2022,0167602,£375.00,Revenue,Croston Trinity Methodist Church,51253,,
Chorley Borough Council,http://statistics.data.gov.uk/id/local-authority/30UE,Capital,Capital,EARL - Communities,Grants,03002,Capital Expenditure,Capital,sunningdale,27/05/2022,0167644,"£4,095.00",Capital,D J Bathing,78482,,
Chorley Borough Council,http://statistics.data.gov.uk/id/local-authority/30UE,Business Support,1095,GROW - Commercial & Property,Misc Expenses,40200,Miscellaneous Expenses,5034,Your invoice 654102 for week ending 03/04/2022 Reception/Admin cover,06/05/2022,0166934,£448.50,Revenue,Daniel Adams Recruitment,78104,,
Chorley Borough Council,http://statistics.data.gov.uk/id/local-authority/30UE,Business Support,1095,GROW - Commercial & Property,Cleaning/Attendants' Services,20041,Cleaning and Domestic Supplies,5012,Cleaning cover w/e 03/04/2022,06/05/2022,0166934,£271.00,Revenue,Daniel Adams Recruitment,78104,,
Chorley Borough Council,http://statistics.data.gov.uk/id/local-authority/30UE,Business Support,1095,GROW - Commercial & Property,Misc Expenses,40200,Miscellaneous Expenses,5034,"Your invoice 654130, for week ending 10/04/2022 Reception/admin cover",06/05/2022,0166967,£545.68,Revenue,Daniel Adams Recruitment,78104,,
Chorley Borough Council,http://statistics.data.gov.uk/id/local-authority/30UE,Business Support,1095,GROW - Commercial & Property,Misc Expenses,40200,Miscellaneous Expenses,5034,Per your invoice 654142. Admin/reception cover for week ending 17/04/22,06/05/2022,0167175,£336.38,Revenue,Daniel Adams Recruitment,78104,,
Chorley Borough Council,http://statistics.data.gov.uk/id/local-authority/30UE,Business Support,1095,GROW - Commercial & Property,Misc Expenses,40200,Miscellaneous Expenses,5034,Per your invoice 654171 for week ending 24/04/22 Reception/admin cover,06/05/2022,0167191,£448.50,Revenue,Daniel Adams Recruitment,78104,,
Chorley Borough Council,http://statistics.data.gov.uk/id/local-authority/30UE,Business Support,1095,GROW - Commercial & Property,Cleaning/Attendants' Services,20041,Cleaning and Domestic Supplies,5012,"Cleaning cover, 8 hours",06/05/2022,0167191,£110.40,Revenue,Daniel Adams Recruitment,78104,,
Chorley Borough Council,http://statistics.data.gov.uk/id/local-authority/30UE,Business Support,1095,GROW - Commercial & Property,Misc Expenses,40200,Miscellaneous Expenses,5034,"Per your week 5 invoice 654187,  Reception/admin cover",20/05/2022,0167463,£336.38,Revenue,Daniel Adams Recruitment,78104,,
Chorley Borough Council,http://statistics.data.gov.uk/id/local-authority/30UE,Business Support,1095,GROW - Commercial & Property,Cleaning/Attendants' Services,20041,Cleaning and Domestic Supplies,5012,Cleaning cover (NAME REDACTED) ,20/05/2022,0167463,£331.20,Revenue,Daniel Adams Recruitment,78104,,
Chorley Borough Council,http://statistics.data.gov.uk/id/local-authority/30UE,Business Support,1095,GROW - Commercial & Property,Cleaning/Attendants' Services,20041,Cleaning and Domestic Supplies,5012,Cleaning cover (NAME REDACTED) ,20/05/2022,0167463,£231.15,Revenue,Daniel Adams Recruitment,78104,,
Chorley Borough Council,http://statistics.data.gov.uk/id/local-authority/30UE,Business Support,1095,GROW - Commercial & Property,Misc Expenses,40200,Miscellaneous Expenses,5034,"Per your week 6 invoice 654214, Admin/Reception cover week ending",27/05/2022,0167654,£448.50,Revenue,Daniel Adams Recruitment,78104,,
Chorley Borough Council,http://statistics.data.gov.uk/id/local-authority/30UE,Business Support,1095,GROW - Commercial & Property,Cleaning Materials,40019,"Equipment, Furniture & Materia",5023,Cleaning cover,27/05/2022,0167654,£276.00,Revenue,Daniel Adams Recruitment,78104,,
Chorley Borough Council,http://statistics.data.gov.uk/id/local-authority/30UE,Business Support,1095,GROW - Commercial & Property,Misc Expenses,40200,Miscellaneous Expenses,5034,Per your week 7 invoice 654234 Reception/Admin cover,27/05/2022,0167690,£560.63,Revenue,Daniel Adams Recruitment,78104,,
Chorley Borough Council,http://statistics.data.gov.uk/id/local-authority/30UE,Business Support,1095,GROW - Commercial & Property,Cleaning/Attendants' Services,20041,Cleaning and Domestic Supplies,5012,Cleaning cover,27/05/2022,0167690,£110.40,Revenue,Daniel Adams Recruitment,78104,,
Chorley Borough Council,http://statistics.data.gov.uk/id/local-authority/30UE,Capital,Capital,GOVN - Policy & Governance,Main Contractor,03007,Capital Expenditure,Capital,Acrylic book stand for Memorial Album.,06/05/2022,0166737,£280.00,Capital,Dauphin Acrylic Design Limited,69058,,
Chorley Borough Council,http://statistics.data.gov.uk/id/local-authority/30UE,Central Support Services,1009,EARL - Communities,Misc Expenses,40200,Miscellaneous Expenses,5034,Delivery of Money Skills Training in Adlington schools as part of Neighbourhood Priority 2021-22 To take place in 5 schools,06/05/2022,0166963,"£1,500.00",Revenue,Debt Advice Foundation,85113,,
Chorley Borough Council,http://statistics.data.gov.uk/id/local-authority/30UE,Central Support Services,1009,CUST - Customer & Digital,Computer Equipment-Purchase,40098,Communication and Computing,5028,Dell 24 monitor x50,27/05/2022,0167021,"£6,803.00",Revenue,Dell Corporation Ltd,64387,,
Chorley Borough Council,http://statistics.data.gov.uk/id/local-authority/30UE,Regulatory Services,1048,PLAN - Planning & Development,Professional Fees,14011,Direct Employee Expenses,5001,Consultation Fees for Taxi Group 2 Medicals December 2020 ongoing,20/05/2022,0167600,"£1,020.00",Revenue,Dr Simon Jones,81046,,
Chorley Borough Council,http://statistics.data.gov.uk/id/local-authority/30UE,Unapportionable Central OHeads,1009,GROW - Commercial & Property,General Repairs - Reactive,20004,Repairs Maintenance & Alts,5005,Lancastrian suite Works Small room as agreed Main room and two porches as agreed,20/05/2022,0167471,"£5,250.00",Revenue,EFT Construction,78195,,
Chorley Borough Council,http://statistics.data.gov.uk/id/local-authority/30UE,Homelessness,1075,GROW - Commercial & Property,Laundry,40042,"Clothing, Uniforms and Laundry",5025,For the Laundry services provided to Cotswold House.,20/05/2022,0167352,£948.90,Revenue,Elis UK Ltd,20799,,
Chorley Borough Council,http://statistics.data.gov.uk/id/local-authority/30UE,Central Support Services,1009,CUST - Customer & Digital,Depot Licences,40236,Miscellaneous Expenses,5034,FY 2021.2022 Payment for permit Ref. SP3697CC/A001 Bengal St Depot. REVISED invoice N00005624T,13/05/2022,0157039,"£1,295.00",Revenue,Environment Agency,18256,,
Chorley Borough Council,http://statistics.data.gov.uk/id/local-authority/30UE,Central Support Services,1009,CUST - Customer & Digital,Depot Licences,40236,Miscellaneous Expenses,5034,"2022.2023 Bengal Street Permit No 054195, ERP: SP3697CC/A001Ref Invoice N00006934T",13/05/2022,0167185,"£1,230.25",Revenue,Environment Agency,18256,,
Chorley Borough Council,http://statistics.data.gov.uk/id/local-authority/30UE,Business Support,1095,GROW - Commercial & Property,Internet Charges,40104,Communication and Computing,5028,"Operate Growth April 2022 to March 2023, Connect Growth April 2022 to March 2023, Call charges and IP addresses",20/05/2022,0167398,"£3,810.00",Revenue,Essensys Ltd,77836,,
Chorley Borough Council,http://statistics.data.gov.uk/id/local-authority/30UE,Business Support,1095,GROW - Commercial & Property,Internet Charges,40104,Communication and Computing,5028,po completed in error against 1st inv,27/05/2022,0167558,£254.61,Revenue,Essensys Ltd,77836,,
Chorley Borough Council,http://statistics.data.gov.uk/id/local-authority/30UE,Business Support,1095,GROW - Commercial & Property,Internet Charges,40104,Communication and Computing,5028,po completed in error against 1st inv,27/05/2022,0167560,£259.31,Revenue,Essensys Ltd,77836,,
Chorley Borough Council,http://statistics.data.gov.uk/id/local-authority/30UE,Recognised Cap Grants & Conts,,PLAN - Planning & Development,Contributions Parish Councils,40144,Grants and Subscriptions,5031,1/10/21 to 31/3/22,13/05/2022,0166890,"£16,606.53",Revenue,Euxton Parish Council,16838,,
Chorley Borough Council,http://statistics.data.gov.uk/id/local-authority/30UE,Service Management & Support,1009,CUST - Customer & Digital,Supplies - Workshop,40246,"Equipment, Furniture & Materia",5023,As per Pro-Forma No 157148,13/05/2022,0167405,£762.01,Revenue,F R Sharrock Ltd,18091,,
Chorley Borough Council,http://statistics.data.gov.uk/id/local-authority/30UE,Central Support Services,1009,CUST - Customer & Digital,Unitary Payment(S),50009,Private Contractors,5042,Provision of Waste and Recycling Services to Chorley Council 2022/23,20/05/2022,0167515,"£212,520.18",Revenue,FCC Environment Services (UK) Limited,77903,,
Chorley Borough Council,http://statistics.data.gov.uk/id/local-authority/30UE,Tourism,1039,GOVN - Policy & Governance,Tools & Equipment - Hire,40004,"Equipment, Furniture & Materia",5023,"1 Grand Floral & Amateur Societies/Gardening Grand Floral, 1 Clearspan Frame Structure, 2 Glazed aluminium Door",06/05/2022,0167240,"£14,409.35",Revenue,Field and Lawn Ltd,74977,,
Chorley Borough Council,http://statistics.data.gov.uk/id/local-authority/30UE,Central Support Services,1009,EARL - Communities,External Contractor,40198,Miscellaneous Expenses,5034,Contractor - EHO NAME REDACTED,06/05/2022,0166818,"£1,120.50",Revenue,G2 Recruitment Solutions,84173,,
Chorley Borough Council,http://statistics.data.gov.uk/id/local-authority/30UE,Corporate Management,1008,EARL - Communities,Agency Staff,13000,Direct Employee Expenses,5001,Agency placement of NAME REDACTED in the temporary Housing Solutions Manager (operations) role for 6 months,20/05/2022,0166893,"£1,631.25",Revenue,G2 Recruitment Solutions,84173,,
Chorley Borough Council,http://statistics.data.gov.uk/id/local-authority/30UE,Corporate Management,1008,EARL - Communities,Agency Staff,13000,Direct Employee Expenses,5001,Agency placement of NAME REDACTED in the temporary Housing Solutions Manager (operations) role for 6 months,20/05/2022,0166965,"£1,350.00",Revenue,G2 Recruitment Solutions,84173,,
Chorley Borough Council,http://statistics.data.gov.uk/id/local-authority/30UE,Corporate Management,1008,EARL - Communities,Agency Staff,13000,Direct Employee Expenses,5001,Agency placement of NAME REDACTED in the temporary Housing Solutions Manager (operations) role for 6 months,20/05/2022,0167101,"£1,350.00",Revenue,G2 Recruitment Solutions,84173,,
Chorley Borough Council,http://statistics.data.gov.uk/id/local-authority/30UE,Corporate Management,1008,EARL - Communities,Agency Staff,13000,Direct Employee Expenses,5001,Agency placement of NAME REDACTED in the temporary Housing Solutions Manager (operations) role for 6 months,20/05/2022,0167237,"£1,440.00",Revenue,G2 Recruitment Solutions,84173,,
Chorley Borough Council,http://statistics.data.gov.uk/id/local-authority/30UE,Homelessness,1075,EARL - Communities,Agency Staff,13000,Direct Employee Expenses,5001,New PO for HS post as new member of staff NAME REDACTED (though placement agreed in November 2021 for agency staff and waiver agreed then but officer did not stay in post),20/05/2022,0167307,"£1,138.50",Revenue,G2 Recruitment Solutions,84173,,
Chorley Borough Council,http://statistics.data.gov.uk/id/local-authority/30UE,Corporate Management,1008,EARL - Communities,Agency Staff,13000,Direct Employee Expenses,5001,Agency placement of NAME REDACTED in the temporary Housing Solutions Manager (operations) role for 6 months,20/05/2022,0167392,"£1,631.25",Revenue,G2 Recruitment Solutions,84173,,
Chorley Borough Council,http://statistics.data.gov.uk/id/local-authority/30UE,Homelessness,1075,EARL - Communities,Agency Staff,13000,Direct Employee Expenses,5001,New PO for HS post as new member of staff NAME REDACTED (though placement agreed in November 2021 for agency staff and waiver agreed then but officer did not stay in post),20/05/2022,0167432,"£1,320.00",Revenue,G2 Recruitment Solutions,84173,,
Chorley Borough Council,http://statistics.data.gov.uk/id/local-authority/30UE,Service Management & Support,1009,CUST - Customer & Digital,Hire Of Vehicles and Plant,30028,Contrct Hire & Operating Lease,5018,3 Year Contract hire 1x Schmidt Swingo 200+ as per ITT including servicing and Maintenance,13/05/2022,0166663,"£2,019.85",Revenue,Go Plant Fleet Services Ltd,80857,,
Chorley Borough Council,http://statistics.data.gov.uk/id/local-authority/30UE,Service Management & Support,1009,CUST - Customer & Digital,Hire Of Vehicles and Plant,30028,Contrct Hire & Operating Lease,5018,3 Year Contract hire 1x Schmidt Swingo 200+ as per ITT including servicing and Maintenance,13/05/2022,0166715,"£1,762.23",Revenue,Go Plant Fleet Services Ltd,80857,,
Chorley Borough Council,http://statistics.data.gov.uk/id/local-authority/30UE,Service Management & Support,1009,CUST - Customer & Digital,Hire Of Vehicles and Plant,30028,Contrct Hire & Operating Lease,5018,3 Year Contract hire 1x Schmidt Swingo 200+ as per ITT including servicing and Maintenance,13/05/2022,0166716,"£2,772.31",Revenue,Go Plant Fleet Services Ltd,80857,,
Chorley Borough Council,http://statistics.data.gov.uk/id/local-authority/30UE,Service Management & Support,1009,CUST - Customer & Digital,Hire Of Vehicles and Plant,30028,Contrct Hire & Operating Lease,5018,3 Year Contract hire 1x Schmidt Swingo 200+ as per ITT including servicing and Maintenance,13/05/2022,0166717,"£2,019.85",Revenue,Go Plant Fleet Services Ltd,80857,,
Chorley Borough Council,http://statistics.data.gov.uk/id/local-authority/30UE,Service Management & Support,1009,CUST - Customer & Digital,Supplies-Grounds Maintenance,40025,"Equipment, Furniture & Materia",5023,10 x Schmidt poly wire brushes,13/05/2022,0167239,£552.92,Revenue,Go Plant Fleet Services Ltd,80857,,
Chorley Borough Council,http://statistics.data.gov.uk/id/local-authority/30UE,Central Support Services,1009,GROW - Commercial & Property,Consultants` Fees,40077,Services,5027,Consultancy fees - Tatton Mar 2022,27/05/2022,0167107,"£1,625.00",Revenue,Gosling Consulting Limited,78380,,
Chorley Borough Council,http://statistics.data.gov.uk/id/local-authority/30UE,Capital,Capital,GROW - Commercial & Property,Other Capital Related Fees,03024,Capital Expenditure,Capital,Revised consulting fees for the market food (1498) area due to protracted council negotiation with existing tenants.,06/05/2022,0167243,"£1,543.20",Capital,Gosling Consulting Limited,78380,,
Chorley Borough Council,http://statistics.data.gov.uk/id/local-authority/30UE,Corporate Management,1008,GROW - Commercial & Property,Professional Fees,40063,Services,5027,Provide a feasibility study for constructing a multi-storey car park at Strawberry Fields ,13/05/2022,0167390,"£12,125.00",Revenue,Gosling Consulting Limited,78380,,
Chorley Borough Council,http://statistics.data.gov.uk/id/local-authority/30UE,Central Support Services,1009,GROW - Commercial & Property,Professional Fees,40063,Services,5027,"Consultancy Services - Tatton, April 2022",20/05/2022,0167524,£568.75,Revenue,Gosling Consulting Limited,78380,,
Chorley Borough Council,http://statistics.data.gov.uk/id/local-authority/30UE,Central Support Services,1009,GROW - Commercial & Property,Professional Fees,40063,Services,5027,"Consultancy Services - Alker Lane, April 2022",20/05/2022,0167525,"£1,137.50",Revenue,Gosling Consulting Limited,78380,,
Chorley Borough Council,http://statistics.data.gov.uk/id/local-authority/30UE,Central Support Services,1009,PLAN - Planning & Development,Vandalism Repairs,20005,Repairs Maintenance & Alts,5005,Graffiti removal contract Feb 2022 ongoing,13/05/2022,0167312,£670.00,Revenue,Graffiti Away Ltd,78340,,
Chorley Borough Council,http://statistics.data.gov.uk/id/local-authority/30UE,Central Support Services,1009,PLAN - Planning & Development,Vandalism Repairs,20005,Repairs Maintenance & Alts,5005,Graffiti removal contract Feb 2022 ongoing,27/05/2022,0167663,£570.00,Revenue,Graffiti Away Ltd,78340,,
Chorley Borough Council,http://statistics.data.gov.uk/id/local-authority/30UE,Unapportionable Central OHeads,1009,GOVN - Policy & Governance,External Audit,40064,Services,5027,Housing Benefit Audit 2020/21,27/05/2022,0167298,"£20,400.00",Revenue,Grant Thornton UK LLP,57322,,
Chorley Borough Council,http://statistics.data.gov.uk/id/local-authority/30UE,Corporate Management,1008,GROW - Commercial & Property,Publicity - Advertising,40157,Miscellaneous Expenses,5034,Social media for Market Walk SHopping  Centre Chorley. April - September 2022 @£500 Per month Total 6 months £4500,13/05/2022,0167384,£500.00,Revenue,Gravity,77837,,
Chorley Borough Council,http://statistics.data.gov.uk/id/local-authority/30UE,Corporate Management,1008,GROW - Commercial & Property,Publicity - Advertising,40157,Miscellaneous Expenses,5034,"Social media for Market Walk SHopping 
Centre Chorley.
April - September 2022 @£500 Per month
Total 6 months £4500",13/05/2022,0167385,£500.00,Revenue,Gravity,77837,,
Chorley Borough Council,http://statistics.data.gov.uk/id/local-authority/30UE,Service Management & Support,1009,CUST - Customer & Digital,External Contractor,40198,Miscellaneous Expenses,5034,"As per Quote QU-0177
Removal of corrugated asbestos sheeting from Bengal street depot",27/05/2022,0167482,£550.00,Revenue,Greenfield Removals Limited,78440,,
Chorley Borough Council,http://statistics.data.gov.uk/id/local-authority/30UE,Recognised Cap Grants & Conts,,PLAN - Planning & Development,Contributions Parish Councils,40144,Grants and Subscriptions,5031,1/10/21 to 31/3/22,13/05/2022,0166894,£284.07,Revenue,Heath Charnock Parish Council,16208,,
Chorley Borough Council,http://statistics.data.gov.uk/id/local-authority/30UE,Central Support Services,1009,CUST - Customer & Digital,Computer Software-Purchase,40100,Communication and Computing,5028,"Access control hardware
Door installation and configuration (including PM)
Time recording hardware
Professional Services
Total Capital (£)
Revenue
Time recording licensing software, support and maintenance
Time recording hardware support and mainte",06/05/2022,0166649,"£4,818.00",Revenue,Hfx Ltd,17164,,
Chorley Borough Council,http://statistics.data.gov.uk/id/local-authority/30UE,Corporate Management,1008,EARL - Communities,Grants to Voluntary Organisations,40124,Grants and Subscriptions,5031,Practical Support for Families – Coping with cost of living. Establish a support network with incentives and skills development,27/05/2022,0167681,"£15,674.00",Revenue,Home-Start Central Lancashire Ltd,20585,,
Chorley Borough Council,http://statistics.data.gov.uk/id/local-authority/30UE,Corporate Management,1008,GOVN - Policy & Governance,Other Fees,40212,Miscellaneous Expenses,5034,Subsidy for the provision of a meals on wheels service in Chorley up to 24 April 2022,20/05/2022,0167462,£428.40,Revenue,I Care GB Ltd,77247,,
Chorley Borough Council,http://statistics.data.gov.uk/id/local-authority/30UE,Elections,1012,GOVN - Policy & Governance,Computer Software-Maintenance,40107,Communication and Computing,5028,"1 June 2022 to 31 May 2023 - EROS annual support and maintenance, LLPG, & Web eros",13/05/2022,0167205,"£10,644.59",Revenue,IDOX Software Limited,17542,,
Chorley Borough Council,http://statistics.data.gov.uk/id/local-authority/30UE,Community Development,1097,EARL - Communities,Misc Expenses,40200,Miscellaneous Expenses,5034,Supply of Open 4 Community funding portal May 2022 to April 23,27/05/2022,0167227,"£5,355.00",Revenue,IDOX Software Limited,17542,,
Chorley Borough Council,http://statistics.data.gov.uk/id/local-authority/30UE,Development Control,1091,PLAN - Planning & Development,Professional Fees,40063,Services,5027,For Ecology advice provided on planning applications for Chorley the year 2021/2022,27/05/2022,0166085,"£6,956.00",Revenue,iNetwork (Tameside Council),19554,,
Chorley Borough Council,http://statistics.data.gov.uk/id/local-authority/30UE,Capital,Capital,EARL - Communities,Main Contractor,03007,Capital Expenditure,Capital,"Trees for various greenspaces in the Borough. Astley Park, Astley Village, Healey Nab and Riverside Croston. Delivered.",06/05/2022,0167223,"£1,812.20",Capital,J A Jones & Sons,85158,,
Chorley Borough Council,http://statistics.data.gov.uk/id/local-authority/30UE,Capital,Capital,EARL - Communities,Main Contractor,03007,Capital Expenditure,Capital,"Trees for rear of Outterside Avenue, Adlington",06/05/2022,0167224,£568.10,Capital,J A Jones & Sons,85158,,
Chorley Borough Council,http://statistics.data.gov.uk/id/local-authority/30UE,Capital,Capital,EARL - Communities,Main Contractor,03007,Capital Expenditure,Capital,Tree giveaway for February. Trees as quoted in spreadsheet. 26th Feb 2022. Delivered,06/05/2022,0167225,"£5,203.05",Capital,J A Jones & Sons,85158,,
Chorley Borough Council,http://statistics.data.gov.uk/id/local-authority/30UE,Capital,Capital,EARL - Communities,Main Contractor,03007,Capital Expenditure,Capital,"Trees for various greenspaces in the Borough. Astley Park, Astley Village, Healey Nab and Riverside Croston. Delivered.",06/05/2022,0167235,£282.00,Capital,J A Jones & Sons,85158,,
Chorley Borough Council,http://statistics.data.gov.uk/id/local-authority/30UE,Homelessness,1075,EARL - Communities,Prevention Fund,40242,Miscellaneous Expenses,5034,One off payment from the vulnerable renters fund to clear arrears for NAME & ADDRESS REDACTED,27/05/2022,0167701,"£3,606.70",Revenue,Jigsaw Homes (North),85185,,
Chorley Borough Council,http://statistics.data.gov.uk/id/local-authority/30UE,Business Support,1095,GROW - Commercial & Property,Tools & Equipment - Purchase,40003,"Equipment, Furniture & Materia",5023,For the maintenance and services provided at Primrose gardens,20/05/2022,0167500,£333.09,Revenue,JLA Total Care LTD,78420,,
Chorley Borough Council,http://statistics.data.gov.uk/id/local-authority/30UE,Capital,Capital,EARL - Communities,Grants,03002,Capital Expenditure,Capital,88 park ave,06/05/2022,0167165,"£5,026.25",Capital,K Berry Ltd,16421,,
Chorley Borough Council,http://statistics.data.gov.uk/id/local-authority/30UE,Homelessness,1075,EARL - Communities,Professional Fees,40063,Services,5027,Provision of young people`s housing drop in and mediation service,06/05/2022,0167276,"£3,750.00",Revenue,Key,61252,,
Chorley Borough Council,http://statistics.data.gov.uk/id/local-authority/30UE,Culture & Heritage,1036,GOVN - Policy & Governance,Conservation Of Exhibits,40059,Services,5027,"Conservation treatment to secure unstable paint on the Ferdinan Magalla Panel, Great Hall, Astley Hall",06/05/2022,0167196,£280.00,Revenue,Lancashire County Council,17758,,
Chorley Borough Council,http://statistics.data.gov.uk/id/local-authority/30UE,Precepts and Collection Fund,Precepts,GOVN - Policy & Governance,LCC Precept,02009,Precepts & Collection Fund,Precept,LCC CTax precepts,30/05/2022,0167220,"£5,841,834.32",Revenue,Lancashire County Council,18386,,
Chorley Borough Council,http://statistics.data.gov.uk/id/local-authority/30UE,Collection Fund Revenue Accoun,,GOVN - Policy & Governance,NNDR County Share,02036,Precepts & Collection Fund,Precept,LCC BRates precepts,30/05/2022,0167220,"£154,330.41",Revenue,Lancashire County Council,18386,,
Chorley Borough Council,http://statistics.data.gov.uk/id/local-authority/30UE,Corporate Management,1008,EARL - Communities,Grants to Voluntary Organisations,40124,Grants and Subscriptions,5031,Supermarket Vouchers from LCC Catering Income,27/05/2022,0167274,"£37,350.00",Revenue,Lancashire County Council,17758,,
Chorley Borough Council,http://statistics.data.gov.uk/id/local-authority/30UE,Corporate Management,1008,EARL - Communities,Grants to Voluntary Organisations,40124,Grants and Subscriptions,5031,Supermarket Vouchers from LCC Catering Income,13/05/2022,0167275,"£7,000.00",Revenue,Lancashire County Council,17758,,
Chorley Borough Council,http://statistics.data.gov.uk/id/local-authority/30UE,Central Support Services,1009,CUST - Customer & Digital,Clinical Waste Collection,50007,Private Contractors,5042,Domestic clinical waste collections 2022,27/05/2022,0167668,"£2,148.32",Revenue,Lancashire Environmental Services,82309,,
Chorley Borough Council,http://statistics.data.gov.uk/id/local-authority/30UE,Unapportionable Central OHeads,1009,GOVN - Policy & Governance,Pensions Increase Act Payments,18005,Indirect Employee Expenses,5002,CAY feb22,30/05/2022,0167100,"£16,993.55",Revenue,Lancashire Pensions Services DD ONLY,16696,,
Chorley Borough Council,http://statistics.data.gov.uk/id/local-authority/30UE,Service Management & Support,1009,CUST - Customer & Digital,Vehicles and Plant Maintenance,30045,Direct Transport Costs,5016,"YM70GXB - Service & Chassis Inspection, Grease & Lube Carry out safety inspectioN & Top up hydraulic oil - 35 ltrs",27/05/2022,0167670,£552.04,Revenue,Lancashire Waste Services,78129,,
Chorley Borough Council,http://statistics.data.gov.uk/id/local-authority/30UE,Precepts and Collection Fund,Precepts,GOVN - Policy & Governance,LCFA Precept,02011,Precepts & Collection Fund,Precept,LCFA CTax precepts,30/05/2022,0167218,"£297,967.00",Revenue,Lancs Combined Fire Authority,17768,,
Chorley Borough Council,http://statistics.data.gov.uk/id/local-authority/30UE,Collection Fund Revenue Accoun,,GOVN - Policy & Governance,NNDR Fire Share,02037,Precepts & Collection Fund,Precept,LCFA BRates precepts,30/05/2022,0167218,"£17,152.82",Revenue,Lancs Combined Fire Authority,17768,,
Chorley Borough Council,http://statistics.data.gov.uk/id/local-authority/30UE,Planning Policy,1092,EARL - Communities,Consultants` Fees,40077,Services,5027,Land Use Study for Central Lancashire Local Plan,13/05/2022,0167430,"£12,000.75",Revenue,Land Use Consultants (LUC) Ltd,81849,,
Chorley Borough Council,http://statistics.data.gov.uk/id/local-authority/30UE,Homelessness,1075,EARL - Communities,Agency Staff,13000,Direct Employee Expenses,5001,Installation of security guard at Cotswold House to facilitate widened use of Winter Watch room,13/05/2022,0166637,"£3,933.56",Revenue,Leisure Guard Security UK Ltd,84259,,
Chorley Borough Council,http://statistics.data.gov.uk/id/local-authority/30UE,Corporate Management,1008,GOVN - Policy & Governance,Treasury Management Service,40065,Services,5027,Treasury Management Services for the period 01/10/2021 - 31/03/2022,27/05/2022,0166795,"£7,800.00",Revenue,Link Treasury Services Limited,16428,,
Chorley Borough Council,http://statistics.data.gov.uk/id/local-authority/30UE,Tourism,1039,GOVN - Policy & Governance,Publicity - Advertising,40157,Miscellaneous Expenses,5034,Chorley Flower Show back cover on Family Mag - summer edition and Northern Life May/June edition ,20/05/2022,0166089,£350.00,Revenue,Loop Publishing Ltd,18770,,
Chorley Borough Council,http://statistics.data.gov.uk/id/local-authority/30UE,Tourism,1039,GOVN - Policy & Governance,Publicity - Advertising,40157,Miscellaneous Expenses,5034,Chorley Flower Show back cover on Family Mag - summer edition and Northern Life May/June edition ,20/05/2022,0166304,£600.00,Revenue,Loop Publishing Ltd,18770,,
Chorley Borough Council,http://statistics.data.gov.uk/id/local-authority/30UE,Service Management & Support,1009,CUST - Customer & Digital,Supplies-Grounds Maintenance,40025,"Equipment, Furniture & Materia",5023,Supply The Heskin Bench for Astley Park,13/05/2022,0167399,"£1,062.00",Revenue,Lost Art Limited,22117,,
Chorley Borough Council,http://statistics.data.gov.uk/id/local-authority/30UE,Unapportionable Central OHeads,1009,Chief Executive,Stationery,40050,"Printing, Stationery & General",5026,Black Toner Cartridge for Lexmark T650 printer,20/05/2022,0166816,£299.02,Revenue,Lyreco UK Ltd,17623,,
Chorley Borough Council,http://statistics.data.gov.uk/id/local-authority/30UE,Unapportionable Central OHeads,1009,Chief Executive,Stationery,40050,"Printing, Stationery & General",5026,BX2100 LYRECO M/PURPOSE LABEL 63.5X38.1,20/05/2022,0166816,£2.15,Revenue,Lyreco UK Ltd,17623,,
Chorley Borough Council,http://statistics.data.gov.uk/id/local-authority/30UE,Unapportionable Central OHeads,1009,Chief Executive,Stationery,40050,"Printing, Stationery & General",5026,BX1400 Lyreco M/Purpose Labels 99.1x38.1,20/05/2022,0166816,£2.15,Revenue,Lyreco UK Ltd,17623,,
Chorley Borough Council,http://statistics.data.gov.uk/id/local-authority/30UE,Unapportionable Central OHeads,1009,Chief Executive,Stationery,40050,"Printing, Stationery & General",5026,PK12 LYRECO REPO NOTES 51X38 YLLW,20/05/2022,0166816,£0.29,Revenue,Lyreco UK Ltd,17623,,
Chorley Borough Council,http://statistics.data.gov.uk/id/local-authority/30UE,Unapportionable Central OHeads,1009,Chief Executive,Stationery,40050,"Printing, Stationery & General",5026,43BX 5000 Lyreco Staples 26/6,20/05/2022,0166816,£0.60,Revenue,Lyreco UK Ltd,17623,,
Chorley Borough Council,http://statistics.data.gov.uk/id/local-authority/30UE,Unapportionable Central OHeads,1009,Chief Executive,Stationery,40050,"Printing, Stationery & General",5026, A4 Multi-Punched Plastic Pockets 80 Microns - Pack Of 100,20/05/2022,0166816,£38.58,Revenue,Lyreco UK Ltd,17623,,
Chorley Borough Council,http://statistics.data.gov.uk/id/local-authority/30UE,Unapportionable Central OHeads,1009,Chief Executive,Stationery,40050,"Printing, Stationery & General",5026,Leitz Wow Titanium scissors 20.5 cm Blue,20/05/2022,0166816,£25.40,Revenue,Lyreco UK Ltd,17623,,
Chorley Borough Council,http://statistics.data.gov.uk/id/local-authority/30UE,Unapportionable Central OHeads,1009,Chief Executive,Stationery,40050,"Printing, Stationery & General",5026,Lyreco Assorted Colour Highlighters - Wallet Of 6,20/05/2022,0166816,£3.95,Revenue,Lyreco UK Ltd,17623,,
Chorley Borough Council,http://statistics.data.gov.uk/id/local-authority/30UE,Unapportionable Central OHeads,1009,Chief Executive,Stationery,40050,"Printing, Stationery & General",5026, Lyreco Budget Storage Box,20/05/2022,0166816,£6.12,Revenue,Lyreco UK Ltd,17623,,
Chorley Borough Council,http://statistics.data.gov.uk/id/local-authority/30UE,Unapportionable Central OHeads,1009,Chief Executive,Stationery,40050,"Printing, Stationery & General",5026,Elba Spring Pocket Files - Green,20/05/2022,0166816,£22.87,Revenue,Lyreco UK Ltd,17623,,
Chorley Borough Council,http://statistics.data.gov.uk/id/local-authority/30UE,Unapportionable Central OHeads,1009,Chief Executive,Stationery,40050,"Printing, Stationery & General",5026,A4 twinwire manuscript books,20/05/2022,0166816,£4.65,Revenue,Lyreco UK Ltd,17623,,
Chorley Borough Council,http://statistics.data.gov.uk/id/local-authority/30UE,Unapportionable Central OHeads,1009,Chief Executive,Stationery,40050,"Printing, Stationery & General",5026,Lyreco Twinwire Manuscript Books A5,20/05/2022,0166816,£3.50,Revenue,Lyreco UK Ltd,17623,,
Chorley Borough Council,http://statistics.data.gov.uk/id/local-authority/30UE,Unapportionable Central OHeads,1009,Chief Executive,Stationery,40050,"Printing, Stationery & General",5026,`Things to do Today` book,20/05/2022,0166816,£2.06,Revenue,Lyreco UK Ltd,17623,,
Chorley Borough Council,http://statistics.data.gov.uk/id/local-authority/30UE,Unapportionable Central OHeads,1009,Chief Executive,Stationery,40050,"Printing, Stationery & General",5026,Black Toner Cartridge for Lexmark T650 printer,20/05/2022,0167535,£299.02,Revenue,Lyreco UK Ltd,17623,,
Chorley Borough Council,http://statistics.data.gov.uk/id/local-authority/30UE,Unapportionable Central OHeads,1009,Chief Executive,Stationery,40050,"Printing, Stationery & General",5026, PK100 LYRECO BUDGET POCK 55MI ORGE PEEL,20/05/2022,0167535,£2.76,Revenue,Lyreco UK Ltd,17623,,
Chorley Borough Council,http://statistics.data.gov.uk/id/local-authority/30UE,Unapportionable Central OHeads,1009,Chief Executive,Stationery,40050,"Printing, Stationery & General",5026,LYRECO WHITE C5 SELF SEAL WINDOW ENVELOPES 90GSM - BOX OF 500,20/05/2022,0167535,£45.80,Revenue,Lyreco UK Ltd,17623,,
Chorley Borough Council,http://statistics.data.gov.uk/id/local-authority/30UE,Unapportionable Central OHeads,1009,Chief Executive,Stationery,40050,"Printing, Stationery & General",5026,Lyreco White C4 Self Seal Window Envelopes 100Gsm - Box Of 250,20/05/2022,0167535,£15.72,Revenue,Lyreco UK Ltd,17623,,
Chorley Borough Council,http://statistics.data.gov.uk/id/local-authority/30UE,Unapportionable Central OHeads,1009,Chief Executive,Stationery,40050,"Printing, Stationery & General",5026,LYRECO LAS CART COMP LEXMARK 50F2H00 BLK,20/05/2022,0167535,£68.67,Revenue,Lyreco UK Ltd,17623,,
Chorley Borough Council,http://statistics.data.gov.uk/id/local-authority/30UE,Unapportionable Central OHeads,1009,Chief Executive,Stationery,40050,"Printing, Stationery & General",5026,BX100 LYRECO LAM POUCH 2X75MI A4 GLOSS,20/05/2022,0167535,£6.38,Revenue,Lyreco UK Ltd,17623,,
Chorley Borough Council,http://statistics.data.gov.uk/id/local-authority/30UE,Unapportionable Central OHeads,1009,Chief Executive,Stationery,40050,"Printing, Stationery & General",5026,BLACK N`RED WIREBOUND NOTEBOOK 140SHT A4,20/05/2022,0167535,£14.46,Revenue,Lyreco UK Ltd,17623,,
Chorley Borough Council,http://statistics.data.gov.uk/id/local-authority/30UE,Unapportionable Central OHeads,1009,Chief Executive,Stationery,40050,"Printing, Stationery & General",5026,1 box fine black pens,20/05/2022,0167535,£6.60,Revenue,Lyreco UK Ltd,17623,,
Chorley Borough Council,http://statistics.data.gov.uk/id/local-authority/30UE,Unapportionable Central OHeads,1009,Chief Executive,Stationery,40050,"Printing, Stationery & General",5026,Stamp pad (110 x 70mm) Black,20/05/2022,0167535,£3.34,Revenue,Lyreco UK Ltd,17623,,
Chorley Borough Council,http://statistics.data.gov.uk/id/local-authority/30UE,Unapportionable Central OHeads,1009,Chief Executive,Stationery,40050,"Printing, Stationery & General",5026,LYRECO REPO NOTES 76X76MM 100SHT YLLW,20/05/2022,0167535,£0.72,Revenue,Lyreco UK Ltd,17623,,
Chorley Borough Council,http://statistics.data.gov.uk/id/local-authority/30UE,Unapportionable Central OHeads,1009,Chief Executive,Stationery,40050,"Printing, Stationery & General",5026,"LYRECO DOC WLLT F/CAP/FOLIO 250G  KRAFT
BOX OF 50",20/05/2022,0167535,£5.00,Revenue,Lyreco UK Ltd,17623,,
Chorley Borough Council,http://statistics.data.gov.uk/id/local-authority/30UE,Unapportionable Central OHeads,1009,Chief Executive,Stationery,40050,"Printing, Stationery & General",5026,Lyreco Twinwire Manuscript Books A5,20/05/2022,0167535,£3.50,Revenue,Lyreco UK Ltd,17623,,
Chorley Borough Council,http://statistics.data.gov.uk/id/local-authority/30UE,Unapportionable Central OHeads,1009,Chief Executive,Stationery,40050,"Printing, Stationery & General",5026,Lyreco multi colour A4 Mylar 10 part dividers pack of 5,20/05/2022,0167535,£1.74,Revenue,Lyreco UK Ltd,17623,,
Chorley Borough Council,http://statistics.data.gov.uk/id/local-authority/30UE,Unapportionable Central OHeads,1009,Chief Executive,Stationery,40050,"Printing, Stationery & General",5026,RM500 STEINBEIS NÂ°1 REC PAPER A4 80G,20/05/2022,0167535,£84.00,Revenue,Lyreco UK Ltd,17623,,
Chorley Borough Council,http://statistics.data.gov.uk/id/local-authority/30UE,Culture & Heritage,1036,GOVN - Policy & Governance,Conservation Of Exhibits,40059,Services,5027,"Return of tapestries from Textile Conservation Ltd, Bristol to Astley Hall Museum and Art Gallery, Chorley",27/05/2022,0167669,£997.00,Revenue,M & G Transport and Technical Services,22443,,
Chorley Borough Council,http://statistics.data.gov.uk/id/local-authority/30UE,Central Support Services,1009,GOVN - Policy & Governance,Mayors Medals,40029,"Equipment, Furniture & Materia",5023,"Photography, printing and courier delivery for mayoral portraits.",06/05/2022,0167273,£400.00,Revenue,Martin Birchall Photography,22503,,
Chorley Borough Council,http://statistics.data.gov.uk/id/local-authority/30UE,Corporate Management,1008,GOVN - Policy & Governance,Agency Staff,13000,Direct Employee Expenses,5001,NAME REDACTED  ,20/05/2022,0167149,£485.44,Revenue,Matrix SCM Ltd,22128,,
Chorley Borough Council,http://statistics.data.gov.uk/id/local-authority/30UE,Corporate Management,1008,GOVN - Policy & Governance,Agency Staff,13000,Direct Employee Expenses,5001,no backup sheet,20/05/2022,0167150,£566.33,Revenue,Matrix SCM Ltd,22128,,
Chorley Borough Council,http://statistics.data.gov.uk/id/local-authority/30UE,Corporate Management,1008,GOVN - Policy & Governance,Agency Staff,13000,Direct Employee Expenses,5001,NAME REDACTED  ,20/05/2022,0167271,£345.68,Revenue,Matrix SCM Ltd,22128,,
Chorley Borough Council,http://statistics.data.gov.uk/id/local-authority/30UE,Corporate Management,1008,GOVN - Policy & Governance,Agency Staff,13000,Direct Employee Expenses,5001,NAME REDACTED  ,20/05/2022,0167429,£588.40,Revenue,Matrix SCM Ltd,22128,,
Chorley Borough Council,http://statistics.data.gov.uk/id/local-authority/30UE,Recognised Cap Grants & Conts,,PLAN - Planning & Development,Contributions Parish Councils,40144,Grants and Subscriptions,5031,1/10/21 to 31/3/22,13/05/2022,0166899,"£2,908.61",Revenue,Mawdesley Parish Council,17570,,
Chorley Borough Council,http://statistics.data.gov.uk/id/local-authority/30UE,Service Management & Support,1009,CUST - Customer & Digital,Supplies-Grounds Maintenance,40025,"Equipment, Furniture & Materia",5023,40 ton of 5mm to dust plainings. Deliver to Yarrow Valley Country Park,13/05/2022,0166706,£865.59,Revenue,Mc & Ma Stewart (Haulage Ltd),16627,,
Chorley Borough Council,http://statistics.data.gov.uk/id/local-authority/30UE,Open Spaces,1038,EARL - Communities,Grounds Maintenance Contractor,20043,Grounds Maintenance Costs,5013,"12 tonne aggregate for Crosse Hall Allotments, Crosse Hall Lane, Chorley, PR6 9AW. ",20/05/2022,0167470,£408.48,Revenue,Mc & Ma Stewart (Haulage Ltd),16627,,
Chorley Borough Council,http://statistics.data.gov.uk/id/local-authority/30UE,Culture & Heritage,1036,GOVN - Policy & Governance,Tools & Equipment - Maintenance,40005,"Equipment, Furniture & Materia",5023,Annual Meaco Radio Warranty Humidifier Service (non-warranty),20/05/2022,0167486,"£1,194.00",Revenue,Meaco Measurement & Control Ltd,16527,,
Chorley Borough Council,http://statistics.data.gov.uk/id/local-authority/30UE,Unapportionable Central OHeads,1009,GROW - Commercial & Property,General Repairs - Reactive,20004,Repairs Maintenance & Alts,5005,14634 Ref:: Flat iron car park Reset sunken kerbstone & make good block paviours,06/05/2022,0166701,£250.00,Revenue,Michael Roe,78294,,
Chorley Borough Council,http://statistics.data.gov.uk/id/local-authority/30UE,Unapportionable Central OHeads,1009,GROW - Commercial & Property,General Repairs - Reactive,20004,Repairs Maintenance & Alts,5005,"Astley village community centre. Attend site to reported blocked gents and ladies toilets, Camera survey & Root cutting",06/05/2022,0166702,£840.00,Revenue,Michael Roe,78294,,
Chorley Borough Council,http://statistics.data.gov.uk/id/local-authority/30UE,Unapportionable Central OHeads,1009,GROW - Commercial & Property,General Repairs - Reactive,20004,Repairs Maintenance & Alts,5005,14568 Ref:: Friday street car park  Reset sunken road grid and make good,06/05/2022,0166703,£250.00,Revenue,Michael Roe,78294,,
Chorley Borough Council,http://statistics.data.gov.uk/id/local-authority/30UE,Unapportionable Central OHeads,1009,GROW - Commercial & Property,General Repairs - Reactive,20004,Repairs Maintenance & Alts,5005,Rear of The Nile Takeaway. Attend site to clear blocked drains Surface water gulley thick with cooking oil/fat,06/05/2022,0166704,£280.00,Revenue,Michael Roe,78294,,
Chorley Borough Council,http://statistics.data.gov.uk/id/local-authority/30UE,Business Support,1095,GROW - Commercial & Property,General Repairs - Reactive,20004,Repairs Maintenance & Alts,5005,14629 Ref:: Service yard 2 To attend site and clear foul drains,06/05/2022,0166705,£280.00,Revenue,Michael Roe,78294,,
Chorley Borough Council,http://statistics.data.gov.uk/id/local-authority/30UE,Central Support Services,1009,EARL - Communities,External Contractor,40198,Miscellaneous Expenses,5034,Inspections carried out for Chorley Council by NAME REDACTED,20/05/2022,0167236,£595.00,Revenue,Mick Cuerden,85150,,
Chorley Borough Council,http://statistics.data.gov.uk/id/local-authority/30UE,Homelessness,1075,EARL - Communities,Misc Expenses,40200,Miscellaneous Expenses,5034,Outside Catering for Conversation Café,27/05/2022,0167383,"£1,320.00",Revenue,Mike Bryan,77185,,
Chorley Borough Council,http://statistics.data.gov.uk/id/local-authority/30UE,Collection Fund Revenue Accoun,,GOVN - Policy & Governance,NNDR Central Share,02034,Precepts & Collection Fund,Precept,central share,30/05/2022,0167648,"£1,035,695.00",Revenue,Ministry of Housing Communities & Local Government,16280,,
Chorley Borough Council,http://statistics.data.gov.uk/id/local-authority/30UE,Collection Fund Revenue Accoun,,GOVN - Policy & Governance,NNDR Central Share,02034,Precepts & Collection Fund,Precept,deficit coll fund,30/05/2022,0167648,"-£264,054.00",Revenue,Ministry of Housing Communities & Local Government,16280,,
Chorley Borough Council,http://statistics.data.gov.uk/id/local-authority/30UE,Corporate Management,1008,GOVN - Policy & Governance,Grants To Other Organisations,40127,Grants and Subscriptions,5031,Covid-19 Isolation Support Payment,13/05/2022,0167484,£500.00,Revenue,Miss Gail Breen,83030,,
Chorley Borough Council,http://statistics.data.gov.uk/id/local-authority/30UE,Planning Policy,1092,GROW - Commercial & Property,Legal Fees,40171,Miscellaneous Expenses,5034,"Drafting legal documents, attending site and final hearing to contest application possession of land near South Lodge",13/05/2022,0167402,"£1,690.00",Revenue,Miss Rebecca Cattermole,78532,,
Chorley Borough Council,http://statistics.data.gov.uk/id/local-authority/30UE,Corporate Management,1008,GOVN - Policy & Governance,Grants To Other Organisations,40127,Grants and Subscriptions,5031,Covid-19 Isolation Support Payment,13/05/2022,0167483,£500.00,Revenue,Mr daniel thomas woan,85306,,
Chorley Borough Council,http://statistics.data.gov.uk/id/local-authority/30UE,Planning Policy,1092,EARL - Communities,Legal Fees,40171,Miscellaneous Expenses,5034,Counsel Advice for Central Lancashire Local Plan Ref: 493209,20/05/2022,0167475,"£1,500.00",Revenue,Mr Ian Ponter,19968,,
Chorley Borough Council,http://statistics.data.gov.uk/id/local-authority/30UE,Planning Policy,1092,EARL - Communities,Legal Fees,40171,Miscellaneous Expenses,5034,"CHORLEY, SOUTH RIBBLE AND PRESTON - SAFEGUARDED LAND AND SMALL SITES - (ADVICE 21/4/22) - REF: 493226",27/05/2022,0167705,"£1,125.00",Revenue,Mr Ian Ponter,19968,,
Chorley Borough Council,http://statistics.data.gov.uk/id/local-authority/30UE,Elections,1012,GOVN - Policy & Governance,Statutory Notices,40160,Miscellaneous Expenses,5034,PUBLIC NOTICE REFERENCE -Notice of Election - Borough Council Lancashire Evening Post & Chorley Guardian ,06/05/2022,0166710,"£2,066.04",Revenue,National World Publishing Limited,20072,,
Chorley Borough Council,http://statistics.data.gov.uk/id/local-authority/30UE,Elections,1012,GOVN - Policy & Governance,Statutory Notices,40160,Miscellaneous Expenses,5034,PUBLIC NOTICE REFERENCE -Notice of Election - Parish elections Lancashire Evening Post & Chorley Guardian,06/05/2022,0166711,"£1,836.48",Revenue,National World Publishing Limited,20072,,
Chorley Borough Council,http://statistics.data.gov.uk/id/local-authority/30UE,Development Control,1091,PLAN - Planning & Development,Statutory Notices,40160,Miscellaneous Expenses,5034,Planning Public Notices to appear in the Chorley Guardian April 2022 to March 2023,20/05/2022,0167001,£507.00,Revenue,National World Publishing Limited,20072,,
Chorley Borough Council,http://statistics.data.gov.uk/id/local-authority/30UE,Business Support,1095,GROW - Commercial & Property,Security Service,40062,Services,5027,credit 6113 cancels out invoice,20/05/2022,0167025,£575.75,Revenue,New Concept Security NW Ltd ,80488,,
Chorley Borough Council,http://statistics.data.gov.uk/id/local-authority/30UE,Business Support,1095,GROW - Commercial & Property,Security Service,40062,Services,5027,To provide evening Site Security Services at Market Walk Shopping Centre from 5pm until midnight 7 ,06/05/2022,0167187,£661.50,Revenue,New Concept Security NW Ltd ,80488,,
Chorley Borough Council,http://statistics.data.gov.uk/id/local-authority/30UE,Business Support,1095,GROW - Commercial & Property,Security Service,40062,Services,5027,To provide evening Site Security Services at Market Walk Shopping Centre from 5pm until midnight 7 ,13/05/2022,0167304,£661.50,Revenue,New Concept Security NW Ltd ,80488,,
Chorley Borough Council,http://statistics.data.gov.uk/id/local-authority/30UE,Business Support,1095,GROW - Commercial & Property,Security Service,40062,Services,5027,To provide evening Site Security Services at Market Walk Shopping Centre from 5pm until midnight 7 ,13/05/2022,0167304,£243.25,Revenue,New Concept Security NW Ltd ,80488,,
Chorley Borough Council,http://statistics.data.gov.uk/id/local-authority/30UE,Business Support,1095,GROW - Commercial & Property,Security Service,40062,Services,5027,To provide evening Site Security Services at Market Walk Shopping Centre from 5pm until midnight 7 ,20/05/2022,0167344,£661.50,Revenue,New Concept Security NW Ltd ,80488,,
Chorley Borough Council,http://statistics.data.gov.uk/id/local-authority/30UE,Business Support,1095,GROW - Commercial & Property,Security Service,40062,Services,5027,To provide evening Site Security Services at Market Walk Shopping Centre from 5pm until midnight 7 ,27/05/2022,0167656,£661.50,Revenue,New Concept Security NW Ltd ,80488,,
Chorley Borough Council,http://statistics.data.gov.uk/id/local-authority/30UE,Regulatory Services,1048,PLAN - Planning & Development,"Hackney Badges, Plates Etc.",40023,"Equipment, Furniture & Materia",5023,Private Hire door signs to include tamper evident hologram and cover,13/05/2022,0167269,£358.90,Revenue,NewAuto Ltd t/a MOGO UK,17187,,
Chorley Borough Council,http://statistics.data.gov.uk/id/local-authority/30UE,Capital,Capital,GROW - Commercial & Property,Other Capital Related Fees,03024,Capital Expenditure,Capital,Payment towards the Purchase Price of the property,30/05/2022,0166789,"£125,000.00",Capital,Nigel Bretherton and Lorraine Wendy Bretherton,85141,,
Chorley Borough Council,http://statistics.data.gov.uk/id/local-authority/30UE,Central Support Services,1009,EARL - Communities,Misc Expenses,40200,Miscellaneous Expenses,5034,Upright Fridge for Buttermere Food Club,27/05/2022,0167584,£679.99,Revenue,Nisbets PLC,19593,,
Chorley Borough Council,http://statistics.data.gov.uk/id/local-authority/30UE,Service Management & Support,1009,CUST - Customer & Digital,Tools & Equipment - Purchase,40003,"Equipment, Furniture & Materia",5023,Supply and fit a Genesis Spraying kit to a Yamaha Kodiak 450 & Supply a compact hand held applicator ,27/05/2022,0167495,"£1,995.00",Revenue,Nomix Enviro Ltd,82223,,
Chorley Borough Council,http://statistics.data.gov.uk/id/local-authority/30UE,Service Management & Support,1009,CUST - Customer & Digital,Supplies-Grounds Maintenance,40025,"Equipment, Furniture & Materia",5023,Quantity x 6 Universal Cleaner & Quantity x 189 Nomix Duplex 5 Litres,20/05/2022,0167496,"£17,598.75",Revenue,Nomix Enviro Ltd,82223,,
Chorley Borough Council,http://statistics.data.gov.uk/id/local-authority/30UE,Central Support Services,1009,CUST - Customer & Digital,Hire Of Vehicles and Plant,30028,Contrct Hire & Operating Lease,5018,"vehicle hire,  3.5 ton Luton Van with  tail lift  (April 2021 - 31 March 2022)",06/05/2022,0167074,£683.20,Revenue,Northgate Vehicle Hire (NW) Ltd,17360,,
Chorley Borough Council,http://statistics.data.gov.uk/id/local-authority/30UE,Elections,1012,CUST - Customer & Digital,Hire Of Vehicles and Plant,30028,Contrct Hire & Operating Lease,5018,2x ford transit custom box vans 19 day hire delivered 25th May,27/05/2022,0167693,£755.25,Revenue,Northgate Vehicle Hire (NW) Ltd,17360,,
Chorley Borough Council,http://statistics.data.gov.uk/id/local-authority/30UE,Business Support,1095,GROW - Commercial & Property,Electricity,20013,Energy Costs,5006,1/2 to 28/2/22,06/05/2022,0167169,"£1,152.37",Revenue,Npower Commercial Gas,16814,,
Chorley Borough Council,http://statistics.data.gov.uk/id/local-authority/30UE,Business Support,1095,GROW - Commercial & Property,Electricity,20013,Energy Costs,5006,1/1 to 31/1/22,06/05/2022,0167170,"£1,233.98",Revenue,Npower Commercial Gas,16814,,
Chorley Borough Council,http://statistics.data.gov.uk/id/local-authority/30UE,Business Support,1095,GROW - Commercial & Property,Electricity,20013,Energy Costs,5006,Unit 2 Market Walk Extension,13/05/2022,0167354,£975.39,Revenue,Npower Commercial Gas,16814,,
Chorley Borough Council,http://statistics.data.gov.uk/id/local-authority/30UE,Business Support,1095,GROW - Commercial & Property,Electricity,20013,Energy Costs,5006,Unit 2 market walk extension,13/05/2022,0167355,"£1,107.56",Revenue,Npower Commercial Gas,16814,,
Chorley Borough Council,http://statistics.data.gov.uk/id/local-authority/30UE,Business Support,1095,GROW - Commercial & Property,Electricity,20013,Energy Costs,5006,Unit 2 Market Walk Extension,13/05/2022,0167356,£971.58,Revenue,Npower Commercial Gas,16814,,
Chorley Borough Council,http://statistics.data.gov.uk/id/local-authority/30UE,Central Support Services,1009,GROW - Commercial & Property,Electricity,20013,Energy Costs,5006,annual charge,13/05/2022,0167460,£215.00,Revenue,Npower Commercial Gas,16814,,
Chorley Borough Council,http://statistics.data.gov.uk/id/local-authority/30UE,Unapportionable Central OHeads,1009,GROW - Commercial & Property,Electricity,20013,Energy Costs,5006,annual charg,13/05/2022,0167460,£215.00,Revenue,Npower Commercial Gas,16814,,
Chorley Borough Council,http://statistics.data.gov.uk/id/local-authority/30UE,Central Support Services,1009,GROW - Commercial & Property,Electricity,20013,Energy Costs,5006,annual charge,13/05/2022,0167460,£215.00,Revenue,Npower Commercial Gas,16814,,
Chorley Borough Council,http://statistics.data.gov.uk/id/local-authority/30UE,Recreation & Sport,1037,GROW - Commercial & Property,Electricity,20013,Energy Costs,5006,annual charge,13/05/2022,0167460,£215.00,Revenue,Npower Commercial Gas,16814,,
Chorley Borough Council,http://statistics.data.gov.uk/id/local-authority/30UE,Parking Services,1066,GROW - Commercial & Property,External Contractors,50008,Private Contractors,5042,Provision of Off Street Car Park Cash Collection & Enforcement – final year of contract 01.11.21 to 31.10.22,20/05/2022,0167521,"£4,635.29",Revenue,NSL Limited,67253,,
Chorley Borough Council,http://statistics.data.gov.uk/id/local-authority/30UE,Service Management & Support,1009,CUST - Customer & Digital,Supplies-Grounds Maintenance,40025,"Equipment, Furniture & Materia",5023,"Painting works carried out Jubilee Rec, Adlington",13/05/2022,0167203,£900.00,Revenue,Nuchoice Limited,75454,,
Chorley Borough Council,http://statistics.data.gov.uk/id/local-authority/30UE,Service Management & Support,1009,CUST - Customer & Digital,Supplies-Grounds Maintenance,40025,"Equipment, Furniture & Materia",5023,Painting works carried out at Rangletts Rec for the Green Flag judging,13/05/2022,0167204,£550.00,Revenue,Nuchoice Limited,75454,,
Chorley Borough Council,http://statistics.data.gov.uk/id/local-authority/30UE,Service Management & Support,1009,CUST - Customer & Digital,Supplies-Grounds Maintenance,40025,"Equipment, Furniture & Materia",5023,Paint all street furniture in Coronation Rec ready for the Green Flag judging,27/05/2022,0167592,£790.00,Revenue,Nuchoice Limited,75454,,
Chorley Borough Council,http://statistics.data.gov.uk/id/local-authority/30UE,Elections,1012,GOVN - Policy & Governance,Tools & Equipment - Purchase,40003,"Equipment, Furniture & Materia",5023,30 replacement cardboard cartons for polling booths (including delivery),06/05/2022,0166694,£340.00,Revenue,Pakflatt Group,21177,,
Chorley Borough Council,http://statistics.data.gov.uk/id/local-authority/30UE,Parking Services,1066,GROW - Commercial & Property,Printing,40043,"Printing, Stationery & General",5026,Stock Stelio stub adhesive tickets (2-part/stub) for Portland Street Car Park,06/05/2022,0166859,£300.50,Revenue,Paperwork (UK) Limited,18296,,
Chorley Borough Council,http://statistics.data.gov.uk/id/local-authority/30UE,Parking Services,1066,GROW - Commercial & Property,Printing,40043,"Printing, Stationery & General",5026,200k Stelio Adhesive Check out Chorley. Please deliver FAO: NAME REDACTED Market Walk Management Suite,13/05/2022,0167427,"£1,648.20",Revenue,Paperwork (UK) Limited,18296,,
Chorley Borough Council,http://statistics.data.gov.uk/id/local-authority/30UE,Planning Policy,1092,EARL - Communities,Operational Employees Salaries,10000,Direct Employee Expenses,5001,Supply of agency staff to work on the Central Lancashire Local Plan,06/05/2022,0167238,£575.00,Revenue,Park Avenue Recruitment Ltd,82305,,
Chorley Borough Council,http://statistics.data.gov.uk/id/local-authority/30UE,Planning Policy,1092,EARL - Communities,Operational Employees Salaries,10000,Direct Employee Expenses,5001,Supply of agency staff to work on the Central Lancashire Local Plan,20/05/2022,0167466,"£1,035.00",Revenue,Park Avenue Recruitment Ltd,82305,,
Chorley Borough Council,http://statistics.data.gov.uk/id/local-authority/30UE,Planning Policy,1092,EARL - Communities,Operational Employees Salaries,10000,Direct Employee Expenses,5001,Supply of agency staff to work on the Central Lancashire Local Plan,27/05/2022,0167707,"£1,012.00",Revenue,Park Avenue Recruitment Ltd,82305,,
Chorley Borough Council,http://statistics.data.gov.uk/id/local-authority/30UE,Planning Policy,1092,EARL - Communities,Operational Employees Salaries,10000,Direct Employee Expenses,5001,Supply of agency staff to work on the Central Lancashire Local Plan,27/05/2022,0167718,"£1,449.00",Revenue,Park Avenue Recruitment Ltd,82305,,
Chorley Borough Council,http://statistics.data.gov.uk/id/local-authority/30UE,Economic Development,1096,GROW - Commercial & Property,Cleaning Materials,40019,"Equipment, Furniture & Materia",5023,Please supply cleaning supplies as per email,06/05/2022,0167268,£409.38,Revenue,Pattersons Holdings (Bristol),77537,,
Chorley Borough Council,http://statistics.data.gov.uk/id/local-authority/30UE,Tourism,1039,GOVN - Policy & Governance,Professional Fees,40063,Services,5027,Photography at events 2022,20/05/2022,0167549,£250.00,Revenue,Paul Heyes Photographer,20909,,
Chorley Borough Council,http://statistics.data.gov.uk/id/local-authority/30UE,Unapportionable Central OHeads,1009,GOVN - Policy & Governance,HR Approved Occ Health Fees,15201,Indirect Employee Expenses,5002,Occupational Health Charges for January 2022,20/05/2022,0167027,£544.50,Revenue,People Asset Management Limited,76487,,
Chorley Borough Council,http://statistics.data.gov.uk/id/local-authority/30UE,Unapportionable Central OHeads,1009,GOVN - Policy & Governance,HR Approved Occ Health Fees,15201,Indirect Employee Expenses,5002,,20/05/2022,0167027,£180.00,Revenue,People Asset Management Limited,76487,,
Chorley Borough Council,http://statistics.data.gov.uk/id/local-authority/30UE,Central Support Services,1009,CUST - Customer & Digital,IT Software - Annual Licences,40101,Communication and Computing,5028,Sophos Endpoint Protection Advanced - 200-499 Price per User - 1 Year - Renewal Government - Licence,06/05/2022,0166692,"£5,904.00",Revenue,Phoenix Software Ltd,17046,,
Chorley Borough Council,http://statistics.data.gov.uk/id/local-authority/30UE,Central Support Services,1009,CUST - Customer & Digital,IT Software - Annual Licences,40101,Communication and Computing,5028,Split costs between Chorley and SRBC Citrix Virtual Apps and Desktops Service Premium User/Device - Licence 300x & 600x,27/05/2022,0167327,"£25,788.00",Revenue,Phoenix Software Ltd,17046,,
Chorley Borough Council,http://statistics.data.gov.uk/id/local-authority/30UE,Development Control,1091,PLAN - Planning & Development,Legal Fees,40171,Miscellaneous Expenses,5034,PLANNING ENFORCEMENT APPEAL - ADDRESS REDACTED - ADVISING IN CONFERENCE - PREP AND CON 2HRS,27/05/2022,0167565,£270.00,Revenue,Piers Riley-Smith,84151,,
Chorley Borough Council,http://statistics.data.gov.uk/id/local-authority/30UE,Development Control,1091,PLAN - Planning & Development,Professional Fees,40063,Services,5027,Planning Enforcement Services April 2021 to March 2022,13/05/2022,0167330,"£2,836.15",Revenue,Planning and PACE Solutions Ltd,82083,,
Chorley Borough Council,http://statistics.data.gov.uk/id/local-authority/30UE,Development Control,1091,PLAN - Planning & Development,Professional Fees,40063,Services,5027,,13/05/2022,0167330,£6.85,Revenue,Planning and PACE Solutions Ltd,82083,,
Chorley Borough Council,http://statistics.data.gov.uk/id/local-authority/30UE,Development Control,1091,PLAN - Planning & Development,Professional Fees,40063,Services,5027,Planning Enforcement Services April 2022 to March 2023,20/05/2022,0167343,"£1,577.00",Revenue,Planning and PACE Solutions Ltd,82083,,
Chorley Borough Council,http://statistics.data.gov.uk/id/local-authority/30UE,Development Control,1091,PLAN - Planning & Development,Professional Fees,40063,Services,5027,,20/05/2022,0167343,£7.65,Revenue,Planning and PACE Solutions Ltd,82083,,
Chorley Borough Council,http://statistics.data.gov.uk/id/local-authority/30UE,Precepts and Collection Fund,Precepts,GOVN - Policy & Governance,LPA Precept,02010,Precepts & Collection Fund,Precept,PCC CTax precepts,30/05/2022,0167219,"£912,247.60",Revenue,Police & Crime Commissioner,17438,,
Chorley Borough Council,http://statistics.data.gov.uk/id/local-authority/30UE,Local Tax Collection,1010,Chief Executive,Other Contributions,40145,Grants and Subscriptions,5031,2022-2023 CBC LRF Secretary contribution,20/05/2022,0167265,£896.06,Revenue,Police & Crime Commissioner,17548,,
Chorley Borough Council,http://statistics.data.gov.uk/id/local-authority/30UE,Parking Services,1066,GROW - Commercial & Property,Signs:Provision & Maintenance,20065,Grounds Maintenance Costs,5013,To carry out all work in accordance with NAME REDACTED Car Park Signage Audit Document. Overlays & Signs,06/05/2022,0167022,"£3,998.32",Revenue,Poppy Signs Ltd,21898,,
Chorley Borough Council,http://statistics.data.gov.uk/id/local-authority/30UE,Elections,1012,GOVN - Policy & Governance,Rent/Hire Of Premises,20017,Premises Rents,5007,"Supply of cabins, toilets, ramps and retention building for Local Elections May 2022",27/05/2022,0167499,"£13,709.66",Revenue,Portakabin Limited,51521,,
Chorley Borough Council,http://statistics.data.gov.uk/id/local-authority/30UE,Corporate Management,1008,GOVN - Policy & Governance,Corp Training - Management Development,17002,Indirect Employee Expenses,5002,Passport to People Management Programme Leading through Change Management training sessions x 6,20/05/2022,0166813,"£2,850.00",Revenue,Potential Unearthed,22243,,
Chorley Borough Council,http://statistics.data.gov.uk/id/local-authority/30UE,Elections,1012,GOVN - Policy & Governance,Postages,40082,Communication and Computing,5028,PI mailings - cancellation notice x 606,06/05/2022,0165963,£333.24,Revenue,Print Image Facilities LLP,57870,,
Chorley Borough Council,http://statistics.data.gov.uk/id/local-authority/30UE,Elections,1012,GOVN - Policy & Governance,Printing,40043,"Printing, Stationery & General",5026,polling station ballot books - borough elections 2022,20/05/2022,0167547,"£9,263.40",Revenue,Print Image Network,21171,,
Chorley Borough Council,http://statistics.data.gov.uk/id/local-authority/30UE,Elections,1012,GOVN - Policy & Governance,Printing,40043,"Printing, Stationery & General",5026,postal vote ballot packs 5 May 2022,20/05/2022,0167548,"£19,385.36",Revenue,Print Image Network,21171,,
Chorley Borough Council,http://statistics.data.gov.uk/id/local-authority/30UE,Interest Payable on Debt,1020,GOVN - Policy & Governance,Interest Payable,09009,Interest Payments,5067,interest REDACTED,30/05/2022,0166682,"£17,960.47",Revenue,Public Works Loans Board,21480,,
Chorley Borough Council,http://statistics.data.gov.uk/id/local-authority/30UE,Interest Payable on Debt,1020,GOVN - Policy & Governance,Interest Payable,09009,Interest Payments,5067,interest REDACTED,30/05/2022,0166682,"£17,820.00",Revenue,Public Works Loans Board,21480,,
Chorley Borough Council,http://statistics.data.gov.uk/id/local-authority/30UE,Interest Payable on Debt,1020,GOVN - Policy & Governance,Interest Payable,09009,Interest Payments,5067,interest REDACTED,30/05/2022,0167234,"£25,087.50",Revenue,Public Works Loans Board,21480,,
Chorley Borough Council,http://statistics.data.gov.uk/id/local-authority/30UE,Homelessness,1075,EARL - Communities,Bed and Breakfast Accommodation,40232,Miscellaneous Expenses,5034,NAMES REDACTED - HOTEL COSTS,06/05/2022,0166812,"£2,500.00",Revenue,Purple Roomz,84223,,
Chorley Borough Council,http://statistics.data.gov.uk/id/local-authority/30UE,Homelessness,1075,EARL - Communities,Bed and Breakfast Accommodation,40232,Miscellaneous Expenses,5034,NAMES REDACTED - HOTEL COSTS,06/05/2022,0167264,"£3,500.00",Revenue,Purple Roomz,84223,,
Chorley Borough Council,http://statistics.data.gov.uk/id/local-authority/30UE,Homelessness,1075,EARL - Communities,Bed and Breakfast Accommodation,40232,Miscellaneous Expenses,5034,"Family room 28/04, 2x twin rooms,",13/05/2022,0167342,£500.00,Revenue,Purple Roomz,84223,,
Chorley Borough Council,http://statistics.data.gov.uk/id/local-authority/30UE,Recreation & Sport,1037,GROW - Commercial & Property,Misc Expenses,40200,Miscellaneous Expenses,5034,July 2021 Schools - Swimming Transport 15 x  Brinscall - 59 x All Seasons Leisure Centre ,20/05/2022,0167426,"£2,960.00",Revenue,R S Tyrer Ltd,16255,,
Chorley Borough Council,http://statistics.data.gov.uk/id/local-authority/30UE,Central Support Services,1009,GROW - Commercial & Property,Misc Expenses,40200,Miscellaneous Expenses,5034,Works Variations for Delivery of Whittle GP Surgery,06/05/2022,0166442,"£60,212.90",Revenue,Rayner Rowen Construction Limited,80915,,
Chorley Borough Council,http://statistics.data.gov.uk/id/local-authority/30UE,Central Support Services,1009,GROW - Commercial & Property,Misc Expenses,40200,Miscellaneous Expenses,5034,Works Variations for Delivery of Whittle GP Surgery,13/05/2022,0167073,"£98,542.04",Revenue,Rayner Rowen Construction Limited,80915,,
Chorley Borough Council,http://statistics.data.gov.uk/id/local-authority/30UE,Building Control,1090,PLAN - Planning & Development,General Subscriptions,40146,Grants and Subscriptions,5031,Submit a plan Annual Support Renewal Support valid 28.06.22- 27.06.23,13/05/2022,0167333,£695.00,Revenue,Resolution Data Management Ltd,48223,,
Chorley Borough Council,http://statistics.data.gov.uk/id/local-authority/30UE,Control Accounts,Control,GOVN - Policy & Governance,General Balances,00100,Balance Sheet,Balance,1ts april 22,30/05/2022,0166602,£793.00,Revenue,Reward Gateway (UK) Ltd,66814,,
Chorley Borough Council,http://statistics.data.gov.uk/id/local-authority/30UE,Control Accounts,Control,GOVN - Policy & Governance,General Balances,00100,Balance Sheet,Balance,2 may 22,30/05/2022,0167346,£793.00,Revenue,Reward Gateway (UK) Ltd,66814,,
Chorley Borough Council,http://statistics.data.gov.uk/id/local-authority/30UE,Non Domestic Rates Redistribut,,GOVN - Policy & Governance,Tariff to Business Rates Pool,49002,Expenditure not in NCOS,,lancs bus rates,30/05/2022,0167649,"£520,258.00",Revenue,Ribble Valley Borough Council,21100,,
Chorley Borough Council,http://statistics.data.gov.uk/id/local-authority/30UE,Central Support Services,1009,GROW - Commercial & Property,Consultants` Fees,40077,Services,5027,Provision of Project Management & Quantity Surveying Services on the Tatton Regeneration scheme,27/05/2022,0167338,"£9,540.00",Revenue,Rider Levett Bucknall,67527,,
Chorley Borough Council,http://statistics.data.gov.uk/id/local-authority/30UE,Central Support Services,1009,GROW - Commercial & Property,Consultants` Fees,40077,Services,5027,Provision of Project Management & Quantity Surveying Services on the Tatton Regeneration scheme,27/05/2022,0167339,"£3,575.00",Revenue,Rider Levett Bucknall,67527,,
Chorley Borough Council,http://statistics.data.gov.uk/id/local-authority/30UE,Capital,Capital,GROW - Commercial & Property,Main Contractor,03007,Capital Expenditure,Capital,Brinscall Baths Structural Inspection as agreed with NAME REDACTED,20/05/2022,0167469,£935.00,Capital,Rigby Consulting Engineers Limited,85188,,
Chorley Borough Council,http://statistics.data.gov.uk/id/local-authority/30UE,Central Support Services,1009,GROW - Commercial & Property,Professional Fees,40063,Services,5027,Marketing fees for council commercial property,06/05/2022,0167189,£570.00,Revenue,Rightmove Group Ltd,77717,,
Chorley Borough Council,http://statistics.data.gov.uk/id/local-authority/30UE,Central Support Services,1009,GROW - Commercial & Property,Professional Fees,40063,Services,5027,Marketing fees for council commercial property,20/05/2022,0167472,£570.00,Revenue,Rightmove Group Ltd,77717,,
Chorley Borough Council,http://statistics.data.gov.uk/id/local-authority/30UE,Central Support Services,1009,GROW - Commercial & Property,Professional Fees,40063,Services,5027,Marketing fees for council commercial property,27/05/2022,0167665,£570.00,Revenue,Rightmove Group Ltd,77717,,
Chorley Borough Council,http://statistics.data.gov.uk/id/local-authority/30UE,Capital,Capital,GROW - Commercial & Property,Main Contractor,03007,Capital Expenditure,Capital,Delivery of the Tatton regeneration scheme All in accordance with the executed NEC Engineering & Construct Contract,13/05/2022,0167242,"£660,527.05",Capital,Robertson CE Limited,81176,,
Chorley Borough Council,http://statistics.data.gov.uk/id/local-authority/30UE,Elections,1012,GOVN - Policy & Governance,Postages,40082,Communication and Computing,5028,Postal vote returns - 5 May 2022 borough elections,27/05/2022,0167544,"£3,182.40",Revenue,Royal Mail Group Plc,17522,,
Chorley Borough Council,http://statistics.data.gov.uk/id/local-authority/30UE,Service Management & Support,1009,CUST - Customer & Digital,Hire Of Vehicles and Plant,30028,Contrct Hire & Operating Lease,5018,Hire of mini digger for the flora fleece areas.,27/05/2022,0167694,£270.00,Revenue,Scambler Plant Hire Ltd,16710,,
Chorley Borough Council,http://statistics.data.gov.uk/id/local-authority/30UE,Homelessness,1075,GROW - Commercial & Property,External Contractor,40198,Miscellaneous Expenses,5034,For Security services provided at Cotswold House,27/05/2022,0167675,"£7,451.30",Revenue,Sector Security Services,19269,,
Chorley Borough Council,http://statistics.data.gov.uk/id/local-authority/30UE,Business Support,1095,GROW - Commercial & Property,External Contractor,40198,Miscellaneous Expenses,5034,For Security services provided at Primrose Gardens,27/05/2022,0167676,"£7,374.68",Revenue,Sector Security Services,19269,,
Chorley Borough Council,http://statistics.data.gov.uk/id/local-authority/30UE,Business Support,1095,GROW - Commercial & Property,Security Service,40062,Services,5027,White Hart Key holder security,06/05/2022,0166600,£407.59,Revenue,Securitas Security Services (UK) Ltd,70693,,
Chorley Borough Council,http://statistics.data.gov.uk/id/local-authority/30UE,Unapportionable Central OHeads,1009,GOVN - Policy & Governance,Lone Working System,40097,Communication and Computing,5028,Service Charge for April 2022,20/05/2022,0167407,£500.80,Revenue,SoloProtect Ltd,76206,,
Chorley Borough Council,http://statistics.data.gov.uk/id/local-authority/30UE,Business Support,1095,GROW - Commercial & Property,Window Cleaning,20034,Cleaning and Domestic Supplies,5012,For the window cleaning services and quarterly internal cleans at Primrose gardens,06/05/2022,0167194,£680.00,Revenue,Sparkle Window Cleaning ,77989,,
Chorley Borough Council,http://statistics.data.gov.uk/id/local-authority/30UE,Business Support,1095,GROW - Commercial & Property,Fixtures & Fittings - Repair/Mtnce,20028,Fixtures and Fittings,5010,Market Walk full canopy clean including green area on roof above boots and windows above canopy.,06/05/2022,0167233,"£4,590.00",Revenue,Sparkle Window Cleaning ,77989,,
Chorley Borough Council,http://statistics.data.gov.uk/id/local-authority/30UE,Elections,1012,GOVN - Policy & Governance,Rent/Hire Of Premises,20017,Premises Rents,5007,hire of hall for polling station 5 may 2022,20/05/2022,0167543,£279.00,Revenue,St George`s Church Hall,19348,,
Chorley Borough Council,http://statistics.data.gov.uk/id/local-authority/30UE,Service Management & Support,1009,CUST - Customer & Digital,Diesel/Derv,30007,Direct Transport Costs,5016,"As per order on The Chest 6000 litres white diesel, 2500 litres gas oil to be delivered to Chorley Council depot, Bengal St",13/05/2022,0167336,"£8,974.08",Revenue,Standard Fuel Oils,85167,,
Chorley Borough Council,http://statistics.data.gov.uk/id/local-authority/30UE,Service Management & Support,1009,CUST - Customer & Digital,Diesel/Derv,30007,Direct Transport Costs,5016,"As per order on The Chest 6000 litres white diesel, 2500 litres gas oil to be delivered to Chorley Council depot, Bengal St",13/05/2022,0167337,"£2,635.16",Revenue,Standard Fuel Oils,85167,,
Chorley Borough Council,http://statistics.data.gov.uk/id/local-authority/30UE,Capital,Capital,EARL - Communities,Grants,03002,Capital Expenditure,Capital,ADDRESS REDACTED,27/05/2022,0167277,"£10,561.00",Capital,Stannah Lift Services Ltd,80943,,
Chorley Borough Council,http://statistics.data.gov.uk/id/local-authority/30UE,Capital,Capital,EARL - Communities,Grants,03002,Capital Expenditure,Capital,ADDRESS REDACTED,13/05/2022,0167278,"£4,125.00",Capital,Stannah Lift Services Ltd,80943,,
Chorley Borough Council,http://statistics.data.gov.uk/id/local-authority/30UE,Corporate Management,1008,GOVN - Policy & Governance,Consultants` Fees,40077,Services,5027,CONSULTANCY WORK/WORKSHOP SHARED SERVICES - CHORLEY AND SOUTH RIBBLE COUNCIL,20/05/2022,0167382,"£5,000.00",Revenue,Steve Robinson,84731,,
Chorley Borough Council,http://statistics.data.gov.uk/id/local-authority/30UE,Central Support Services,1009,GROW - Commercial & Property,Professional Fees,40063,Services,5027,Building Consultancy – M&E Design & Consultancy,20/05/2022,0166690,£404.89,Revenue,Steven A Hunt & Associates Ltd,80511,,
Chorley Borough Council,http://statistics.data.gov.uk/id/local-authority/30UE,Central Support Services,1009,GROW - Commercial & Property,Professional Fees,40063,Services,5027,Building Consultancy – M&E Design & Consultancy,20/05/2022,0167341,£404.89,Revenue,Steven A Hunt & Associates Ltd,80511,,
Chorley Borough Council,http://statistics.data.gov.uk/id/local-authority/30UE,Central Support Services,1009,CUST - Customer & Digital,Items For Resale,40027,"Equipment, Furniture & Materia",5023,15 X 1100-litre metal wheeled bin with standard black lid,13/05/2022,0167334,"£1,254.45",Revenue,Storm Environmental Limited,77802,,
Chorley Borough Council,http://statistics.data.gov.uk/id/local-authority/30UE,Unapportionable Central OHeads,1009,GROW - Commercial & Property,General Repairs - Reactive,20004,Repairs Maintenance & Alts,5005,Friday St Car Park Cut damaged panels down and make good as per quote,20/05/2022,0167474,£895.00,Revenue,Stringfellow Bldg Cntrctrs Ltd,17893,,
Chorley Borough Council,http://statistics.data.gov.uk/id/local-authority/30UE,Elections,1012,GOVN - Policy & Governance,Tools & Equipment - Purchase,40003,"Equipment, Furniture & Materia",5023,"To supply Heras fencing, generator, fly leads and refueling on the day at St Chads Parish Centre.",27/05/2022,0167490,"£3,366.00",Revenue,Stringfellow Bldg Cntrctrs Ltd,17893,,
Chorley Borough Council,http://statistics.data.gov.uk/id/local-authority/30UE,Economic Development,1096,GROW - Commercial & Property,Refuse Collection,20037,Cleaning and Domestic Supplies,5012,Market Walk/Market Walk Extension/Markets/Calico Lounge/Reel Cinema Waste Removal 01.04.2022 - 31.03.2023 ,13/05/2022,0167389,"£2,260.26",Revenue,SUEZ R&R UK LTD,17615,,
Chorley Borough Council,http://statistics.data.gov.uk/id/local-authority/30UE,Economic Development,1096,GROW - Commercial & Property,Refuse Collection,20037,Cleaning and Domestic Supplies,5012,Market Walk YARD 1 - GENERAL WASTE (Market Walk) - 8 cubic yard FEL skip,13/05/2022,0167389,£241.77,Revenue,SUEZ R&R UK LTD,17615,,
Chorley Borough Council,http://statistics.data.gov.uk/id/local-authority/30UE,Economic Development,1096,GROW - Commercial & Property,Refuse Collection,20037,Cleaning and Domestic Supplies,5012,Market Walk YARD 1 - CARDBOARD ONLY - 35 cubic yard RoRo skip x 1,13/05/2022,0167389,£25.00,Revenue,SUEZ R&R UK LTD,17615,,
Chorley Borough Council,http://statistics.data.gov.uk/id/local-authority/30UE,Business Support,1095,GROW - Commercial & Property,Refuse Collection,20037,Cleaning and Domestic Supplies,5012,Market Walk YARD 2 - CARDBOARD ONLY - 35 cubic yard RoRo skip x 1 ,13/05/2022,0167389,£25.00,Revenue,SUEZ R&R UK LTD,17615,,
Chorley Borough Council,http://statistics.data.gov.uk/id/local-authority/30UE,Business Support,1095,GROW - Commercial & Property,Refuse Collection,20037,Cleaning and Domestic Supplies,5012,Market Walk YARD 2 - GENERAL WASTE - 8 cubic yard FEL skip x 1 ,13/05/2022,0167389,£242.64,Revenue,SUEZ R&R UK LTD,17615,,
Chorley Borough Council,http://statistics.data.gov.uk/id/local-authority/30UE,Business Support,1095,GROW - Commercial & Property,Refuse Collection,20037,Cleaning and Domestic Supplies,5012,Market Walk YARD 3 - GENERAL WASTE - 8 cubic yard FEL skip x 2 ,13/05/2022,0167389,£485.29,Revenue,SUEZ R&R UK LTD,17615,,
Chorley Borough Council,http://statistics.data.gov.uk/id/local-authority/30UE,Business Support,1095,GROW - Commercial & Property,Refuse Collection,20037,Cleaning and Domestic Supplies,5012,Market Walk YARD 3 - CARDBOARD ONLY - 35 cubic yard RoRo skip x 1 ,13/05/2022,0167389,£25.00,Revenue,SUEZ R&R UK LTD,17615,,
Chorley Borough Council,http://statistics.data.gov.uk/id/local-authority/30UE,Business Support,1095,GROW - Commercial & Property,Refuse Collection,20037,Cleaning and Domestic Supplies,5012,Market Walk YARD 3 - PLASTIC FILM - 35 cubic yard RoRo skip x 1 ,13/05/2022,0167389,£25.00,Revenue,SUEZ R&R UK LTD,17615,,
Chorley Borough Council,http://statistics.data.gov.uk/id/local-authority/30UE,Business Support,1095,GROW - Commercial & Property,Refuse Collection,20037,Cleaning and Domestic Supplies,5012,Market Walk YARD 3 - CARDBOARD ONLY - 12 cubic yard Bakkie cage x 1,13/05/2022,0167389,£54.17,Revenue,SUEZ R&R UK LTD,17615,,
Chorley Borough Council,http://statistics.data.gov.uk/id/local-authority/30UE,Business Support,1095,GROW - Commercial & Property,Refuse Collection,20037,Cleaning and Domestic Supplies,5012,"Market Walk Ext, Chorley PR7 1FD - GENERAL WASTE - Euro 1100 Litre x 10",13/05/2022,0167389,£301.37,Revenue,SUEZ R&R UK LTD,17615,,
Chorley Borough Council,http://statistics.data.gov.uk/id/local-authority/30UE,Business Support,1095,GROW - Commercial & Property,Refuse Collection,20037,Cleaning and Domestic Supplies,5012,"Market Walk Ext, Chorley PR7 1FD - MIXED RECYCLING - Euro 1100 Litre x 10",13/05/2022,0167389,£176.09,Revenue,SUEZ R&R UK LTD,17615,,
Chorley Borough Council,http://statistics.data.gov.uk/id/local-authority/30UE,Business Support,1095,GROW - Commercial & Property,Refuse Collection,20037,Cleaning and Domestic Supplies,5012,"Market Walk Ext, Chorley PR7 1FD - GLASS ONLY - 240 Litre bins x 6",13/05/2022,0167389,£97.88,Revenue,SUEZ R&R UK LTD,17615,,
Chorley Borough Council,http://statistics.data.gov.uk/id/local-authority/30UE,Business Support,1095,GROW - Commercial & Property,Refuse Collection,20037,Cleaning and Domestic Supplies,5012,"Calico Lounge, Market Walk, Chorley, PR7 1FD - GENERAL WASTE - Euro 1100 Litre bins x 3",13/05/2022,0167389,£226.03,Revenue,SUEZ R&R UK LTD,17615,,
Chorley Borough Council,http://statistics.data.gov.uk/id/local-authority/30UE,Business Support,1095,GROW - Commercial & Property,Refuse Collection,20037,Cleaning and Domestic Supplies,5012,"Calico Lounge, Market Walk, Chorley, PR7 1FD - MIXED RECYCLING - Euro 1100 Litre bins x 3",13/05/2022,0167389,£66.03,Revenue,SUEZ R&R UK LTD,17615,,
Chorley Borough Council,http://statistics.data.gov.uk/id/local-authority/30UE,Business Support,1095,GROW - Commercial & Property,Refuse Collection,20037,Cleaning and Domestic Supplies,5012,"Calico Lounge, Market Walk, Chorley, PR7 1FD - GLASS ONLY - 240 Litre bins x 4",13/05/2022,0167389,£65.25,Revenue,SUEZ R&R UK LTD,17615,,
Chorley Borough Council,http://statistics.data.gov.uk/id/local-authority/30UE,Business Support,1095,GROW - Commercial & Property,Refuse Collection,20037,Cleaning and Domestic Supplies,5012,REEL Cinema - GENERAL WASTE - Euro 1100 Litre bins x 4,13/05/2022,0167389,£301.37,Revenue,SUEZ R&R UK LTD,17615,,
Chorley Borough Council,http://statistics.data.gov.uk/id/local-authority/30UE,Business Support,1095,GROW - Commercial & Property,Refuse Collection,20037,Cleaning and Domestic Supplies,5012,REEL Cinema - MIXED RECYCLING - Euro 1100 Litre bins x 4,13/05/2022,0167389,£88.04,Revenue,SUEZ R&R UK LTD,17615,,
Chorley Borough Council,http://statistics.data.gov.uk/id/local-authority/30UE,Service Management & Support,1009,CUST - Customer & Digital,Refuse Collection,20037,Cleaning and Domestic Supplies,5012,Exchange 20 yard Street Sweeping Skip to cover period  01/04/2022 - 31/03/2023,13/05/2022,0167403,"£1,133.44",Revenue,SUEZ R&R UK LTD,17615,,
Chorley Borough Council,http://statistics.data.gov.uk/id/local-authority/30UE,Service Management & Support,1009,CUST - Customer & Digital,Refuse Collection,20037,Cleaning and Domestic Supplies,5012,Exchange 35 yard General Waste Skip to cover period  01/04/2022 - 31/03/2023,13/05/2022,0167403,£809.46,Revenue,SUEZ R&R UK LTD,17615,,
Chorley Borough Council,http://statistics.data.gov.uk/id/local-authority/30UE,Service Management & Support,1009,CUST - Customer & Digital,Refuse Collection,20037,Cleaning and Domestic Supplies,5012,Exchange 35 yard Green Waste skip to cover period 01/04/2022- 31/03/2023,13/05/2022,0167403,£84.26,Revenue,SUEZ R&R UK LTD,17615,,
Chorley Borough Council,http://statistics.data.gov.uk/id/local-authority/30UE,Service Management & Support,1009,CUST - Customer & Digital,Refuse Collection,20037,Cleaning and Domestic Supplies,5012,Disposal charge and processing of Green Waste ,13/05/2022,0167403,£57.75,Revenue,SUEZ R&R UK LTD,17615,,
Chorley Borough Council,http://statistics.data.gov.uk/id/local-authority/30UE,Central Support Services,1009,EARL - Communities,Misc Expenses,40200,Miscellaneous Expenses,5034,"Provision of skip on Saturday 23rd April at Greenside car park, Euxton",27/05/2022,0167461,"£1,170.55",Revenue,SUEZ R&R UK LTD,17615,,
Chorley Borough Council,http://statistics.data.gov.uk/id/local-authority/30UE,Capital,Capital,GOVN - Policy & Governance,Main Contractor,03007,Capital Expenditure,Capital,Astley Hall Museum and Art Gallery To install 54 No panes of MT90 clear UV film. Left-hand column of window 1 in the bay,13/05/2022,0167425,£370.00,Capital,Sun X Ltd,76454,,
Chorley Borough Council,http://statistics.data.gov.uk/id/local-authority/30UE,Capital,Capital,CUST - Customer & Digital,Other Contractor,03012,Capital Expenditure,Capital,"Rotovate & level ground, Astley Park",27/05/2022,0167696,£400.00,Capital,T & L Kirkham,17058,,
Chorley Borough Council,http://statistics.data.gov.uk/id/local-authority/30UE,Planning Policy,1092,EARL - Communities,Consultants` Fees,40077,Services,5027,Proposed prison traffic impact assessment,27/05/2022,0167672,"£3,976.00",Revenue,Tetra Tech Environment Planning Transport,76236,,
Chorley Borough Council,http://statistics.data.gov.uk/id/local-authority/30UE,Business Support,1095,GROW - Commercial & Property,Security Service,40062,Services,5027,Security service at Strawberry Fields Digital Hub between April 2022 to end of September 2022,20/05/2022,0167485,"£7,540.85",Revenue,The ExcluSec Group Ltd,78056,,
Chorley Borough Council,http://statistics.data.gov.uk/id/local-authority/30UE,Central Support Services,1009,CUST - Customer & Digital,Computer Software-Purchase,40100,Communication and Computing,5028,"Chorley and SRBC Switching wireless hardware, software support and licensing.",20/05/2022,0164801,"£206,178.61",Revenue,The Networking People ,73446,,
Chorley Borough Council,http://statistics.data.gov.uk/id/local-authority/30UE,Central Support Services,1009,CUST - Customer & Digital,Computer Software-Purchase,40100,Communication and Computing,5028,"Chorley and SRBC Switching wireless hardware, software support and licensing.",20/05/2022,0166679,"£55,960.14",Revenue,The Networking People ,73446,,
Chorley Borough Council,http://statistics.data.gov.uk/id/local-authority/30UE,Central Support Services,1009,CUST - Customer & Digital,Computer Software-Purchase,40100,Communication and Computing,5028,"Chorley and SRBC Switching wireless hardware, software support and licensing.",20/05/2022,0167193,"£6,717.15",Revenue,The Networking People ,73446,,
Chorley Borough Council,http://statistics.data.gov.uk/id/local-authority/30UE,Central Support Services,1009,GROW - Commercial & Property,Agency Staff,13000,Direct Employee Expenses,5001,Fees for estate surveyor NAME REDACTED,20/05/2022,0167478,"£2,171.38",Revenue,The Oyster Partnership Ltd,81409,,
Chorley Borough Council,http://statistics.data.gov.uk/id/local-authority/30UE,Central Support Services,1009,GROW - Commercial & Property,Agency Staff,13000,Direct Employee Expenses,5001,Fees for estate surveyor NAME REDACTED,27/05/2022,0167580,"£1,775.18",Revenue,The Oyster Partnership Ltd,81409,,
Chorley Borough Council,http://statistics.data.gov.uk/id/local-authority/30UE,Central Support Services,1009,GROW - Commercial & Property,Agency Staff,13000,Direct Employee Expenses,5001,Fees for estate surveyor NAME REDACTED,27/05/2022,0167604,"£1,856.13",Revenue,The Oyster Partnership Ltd,81409,,
Chorley Borough Council,http://statistics.data.gov.uk/id/local-authority/30UE,Central Support Services,1009,GROW - Commercial & Property,Agency Staff,13000,Direct Employee Expenses,5001,Fees for estate surveyor NAME REDACTED,27/05/2022,0167605,"£1,839.75",Revenue,The Oyster Partnership Ltd,81409,,
Chorley Borough Council,http://statistics.data.gov.uk/id/local-authority/30UE,Central Support Services,1009,GROW - Commercial & Property,Agency Staff,13000,Direct Employee Expenses,5001,Fees for estate surveyor NAME REDACTED,27/05/2022,0167606,"£1,513.34",Revenue,The Oyster Partnership Ltd,81409,,
Chorley Borough Council,http://statistics.data.gov.uk/id/local-authority/30UE,Central Support Services,1009,GROW - Commercial & Property,Agency Staff,13000,Direct Employee Expenses,5001,Fees for estate surveyor NAME REDACTED,27/05/2022,0167607,"£1,874.20",Revenue,The Oyster Partnership Ltd,81409,,
Chorley Borough Council,http://statistics.data.gov.uk/id/local-authority/30UE,Central Support Services,1009,GROW - Commercial & Property,Agency Staff,13000,Direct Employee Expenses,5001,Fees for estate surveyor NAME REDACTED,27/05/2022,0167608,"£1,201.77",Revenue,The Oyster Partnership Ltd,81409,,
Chorley Borough Council,http://statistics.data.gov.uk/id/local-authority/30UE,Economic Development,1096,GROW - Commercial & Property,Publicity - Advertising,40157,Miscellaneous Expenses,5034,"48 x To Replacing Flag Dome Tops, restringing Flags and Fitting around Town Centre, restringing Original Ukranian Flags",06/05/2022,0167246,"£1,045.00",Revenue,Town Centre Trees,57436,,
Chorley Borough Council,http://statistics.data.gov.uk/id/local-authority/30UE,Development Control,1091,PLAN - Planning & Development,Professional Fees,40063,Services,5027,Professional Services: Development Management Planning & Feasibility Assessment Viability Negotiations - Brooke Street,27/05/2022,0167564,"£1,000.00",Revenue,Trebbi Continuum,77723,,
Chorley Borough Council,http://statistics.data.gov.uk/id/local-authority/30UE,Service Management & Support,1009,CUST - Customer & Digital,Grounds Maintenance Contractor,20043,Grounds Maintenance Costs,5013,Call out and removal of windblown Alder from garden on Long Copse.,06/05/2022,0167177,£840.00,Revenue,Treescape North West Ltd,17688,,
Chorley Borough Council,http://statistics.data.gov.uk/id/local-authority/30UE,Service Management & Support,1009,CUST - Customer & Digital,Grounds Maintenance Contractor,20043,Grounds Maintenance Costs,5013,"Removal 1 x snapped Willow tree, Pruning back various other trees Felling, thinning & pruning back trees from street lighting",27/05/2022,0167576,"£1,640.00",Revenue,Treescape North West Ltd,17688,,
Chorley Borough Council,http://statistics.data.gov.uk/id/local-authority/30UE,Service Management & Support,1009,CUST - Customer & Digital,Grounds Maintenance Contractor,20043,Grounds Maintenance Costs,5013,Invoice 0069,27/05/2022,0167658,"£2,320.00",Revenue,Treexpert Tree Care,78580,,
Chorley Borough Council,http://statistics.data.gov.uk/id/local-authority/30UE,Elections,1012,GOVN - Policy & Governance,Rent/Hire Of Premises,20017,Premises Rents,5007,room hire for polling station 5 May 2022,20/05/2022,0167542,£330.00,Revenue,Ulnes Walton Charitable Fund,18424,,
Chorley Borough Council,http://statistics.data.gov.uk/id/local-authority/30UE,Central Support Services,1009,GOVN - Policy & Governance,Mayors Medals,40029,"Equipment, Furniture & Materia",5023,"Past Mayor`s Jewel in Hallmarked Silver Gilt, Past Mayoress Jewel in Hallmarked Silver Gilt, double mitred ribbon & Pendant ",20/05/2022,0167541,"£1,667.00",Revenue,Vaughtons,18001,,
Chorley Borough Council,http://statistics.data.gov.uk/id/local-authority/30UE,Central Support Services,1009,EARL - Communities,Agency Staff,13000,Direct Employee Expenses,5001,Env Health Contractors,06/05/2022,0166806,£720.00,Revenue,Vivid Resourcing Ltd,76938,,
Chorley Borough Council,http://statistics.data.gov.uk/id/local-authority/30UE,Development Control,1091,GOVN - Policy & Governance,Agency Staff,13000,Direct Employee Expenses,5001,Contract work - Consultant NAME REDACTED.  April 2022 - March 2023,13/05/2022,0166807,"£1,642.50",Revenue,Vivid Resourcing Ltd,76938,,
Chorley Borough Council,http://statistics.data.gov.uk/id/local-authority/30UE,Development Control,1091,GOVN - Policy & Governance,Agency Staff,13000,Direct Employee Expenses,5001,Contract work - Consultant NAME REDACTED.  April 2022 - March 2023,13/05/2022,0166969,"£1,642.50",Revenue,Vivid Resourcing Ltd,76938,,
Chorley Borough Council,http://statistics.data.gov.uk/id/local-authority/30UE,Central Support Services,1009,EARL - Communities,Agency Staff,13000,Direct Employee Expenses,5001,Env Health Contractors,06/05/2022,0166970,£746.46,Revenue,Vivid Resourcing Ltd,76938,,
Chorley Borough Council,http://statistics.data.gov.uk/id/local-authority/30UE,Central Support Services,1009,EARL - Communities,Agency Staff,13000,Direct Employee Expenses,5001,Env Health Contractors,06/05/2022,0166971,£720.00,Revenue,Vivid Resourcing Ltd,76938,,
Chorley Borough Council,http://statistics.data.gov.uk/id/local-authority/30UE,Development Control,1091,GOVN - Policy & Governance,Agency Staff,13000,Direct Employee Expenses,5001,Contract work - Consultant NAME REDACTED.  April 2022 - March 2023,13/05/2022,0167127,"£1,642.50",Revenue,Vivid Resourcing Ltd,76938,,
Chorley Borough Council,http://statistics.data.gov.uk/id/local-authority/30UE,Private Sector HSG Renewal,1073,EARL - Communities,Agency Staff,13000,Direct Employee Expenses,5001,Agency fees for HIA Temp NAME REDACTED for week commencing 4/4/22. Invoice 77684,13/05/2022,0167181,"£1,378.80",Revenue,Vivid Resourcing Ltd,76938,,
Chorley Borough Council,http://statistics.data.gov.uk/id/local-authority/30UE,Private Sector HSG Renewal,1073,EARL - Communities,Agency Staff,13000,Direct Employee Expenses,5001,Agency fees for HIA Temp NAME REDACTED for week commencing 4/4/22. Invoice 77684,13/05/2022,0167182,"£1,384.65",Revenue,Vivid Resourcing Ltd,76938,,
Chorley Borough Council,http://statistics.data.gov.uk/id/local-authority/30UE,Central Support Services,1009,EARL - Communities,Agency Staff,13000,Direct Employee Expenses,5001,Env Health Contractors,20/05/2022,0167248,£746.46,Revenue,Vivid Resourcing Ltd,76938,,
Chorley Borough Council,http://statistics.data.gov.uk/id/local-authority/30UE,Development Control,1091,GOVN - Policy & Governance,Agency Staff,13000,Direct Employee Expenses,5001,,27/05/2022,0167249,"£1,642.50",Revenue,Vivid Resourcing Ltd,76938,,
Chorley Borough Council,http://statistics.data.gov.uk/id/local-authority/30UE,Central Support Services,1009,EARL - Communities,Agency Staff,13000,Direct Employee Expenses,5001,Env Health Contractors,20/05/2022,0167250,£722.25,Revenue,Vivid Resourcing Ltd,76938,,
Chorley Borough Council,http://statistics.data.gov.uk/id/local-authority/30UE,Private Sector HSG Renewal,1073,EARL - Communities,Agency Staff,13000,Direct Employee Expenses,5001,Agency fees for HIA temp NAME REDACTED. invoice 78615,13/05/2022,0167305,"£1,390.95",Revenue,Vivid Resourcing Ltd,76938,,
Chorley Borough Council,http://statistics.data.gov.uk/id/local-authority/30UE,Development Control,1091,PLAN - Planning & Development,Agency Staff,13000,Direct Employee Expenses,5001,Contract work - Consultant NAME REDACTED.  April 2022 - March 2023,13/05/2022,0167396,"£1,642.50",Revenue,Vivid Resourcing Ltd,76938,,
Chorley Borough Council,http://statistics.data.gov.uk/id/local-authority/30UE,Central Support Services,1009,GROW - Commercial & Property,Agency Staff,13000,Direct Employee Expenses,5001,Building surveyor fees and mileage for 6 months General Building,20/05/2022,0167476,"£1,822.60",Revenue,Vivid Resourcing Ltd,76938,,
Chorley Borough Council,http://statistics.data.gov.uk/id/local-authority/30UE,Central Support Services,1009,GROW - Commercial & Property,Agency Staff,13000,Direct Employee Expenses,5001,Building surveyor fees and mileage for 6 months Housing,20/05/2022,0167516,£549.50,Revenue,Vivid Resourcing Ltd,76938,,
Chorley Borough Council,http://statistics.data.gov.uk/id/local-authority/30UE,Central Support Services,1009,GROW - Commercial & Property,Agency Staff,13000,Direct Employee Expenses,5001,Building surveyor fees and mileage for 6 months Housing,20/05/2022,0167519,"£1,367.37",Revenue,Vivid Resourcing Ltd,76938,,
Chorley Borough Council,http://statistics.data.gov.uk/id/local-authority/30UE,Central Support Services,1009,GROW - Commercial & Property,Agency Staff,13000,Direct Employee Expenses,5001,Building surveyor fees and mileage for 6 months General Building,20/05/2022,0167520,"£1,156.08",Revenue,Vivid Resourcing Ltd,76938,,
Chorley Borough Council,http://statistics.data.gov.uk/id/local-authority/30UE,Central Support Services,1009,GROW - Commercial & Property,Agency Staff,13000,Direct Employee Expenses,5001,Building surveyor fees and mileage for 6 months General Building,20/05/2022,0167522,"£1,588.53",Revenue,Vivid Resourcing Ltd,76938,,
Chorley Borough Council,http://statistics.data.gov.uk/id/local-authority/30UE,Central Support Services,1009,GROW - Commercial & Property,Agency Staff,13000,Direct Employee Expenses,5001,Building surveyor fees and mileage for 6 months Housing,20/05/2022,0167523,"£1,155.00",Revenue,Vivid Resourcing Ltd,76938,,
Chorley Borough Council,http://statistics.data.gov.uk/id/local-authority/30UE,Central Support Services,1009,GROW - Commercial & Property,Agency Staff,13000,Direct Employee Expenses,5001,Building surveyor fees and mileage for 6 months General Building,20/05/2022,0167526,"£1,278.76",Revenue,Vivid Resourcing Ltd,76938,,
Chorley Borough Council,http://statistics.data.gov.uk/id/local-authority/30UE,Central Support Services,1009,GROW - Commercial & Property,Agency Staff,13000,Direct Employee Expenses,5001,Building surveyor fees and mileage for 6 months Housing,20/05/2022,0167527,"£1,127.70",Revenue,Vivid Resourcing Ltd,76938,,
Chorley Borough Council,http://statistics.data.gov.uk/id/local-authority/30UE,Central Support Services,1009,GROW - Commercial & Property,Agency Staff,13000,Direct Employee Expenses,5001,Building surveyor fees and mileage for 6 months General Building,20/05/2022,0167528,"£1,108.46",Revenue,Vivid Resourcing Ltd,76938,,
Chorley Borough Council,http://statistics.data.gov.uk/id/local-authority/30UE,Central Support Services,1009,GROW - Commercial & Property,Agency Staff,13000,Direct Employee Expenses,5001,Building surveyor fees and mileage for 6 months Housing,20/05/2022,0167529,£876.75,Revenue,Vivid Resourcing Ltd,76938,,
Chorley Borough Council,http://statistics.data.gov.uk/id/local-authority/30UE,Central Support Services,1009,GROW - Commercial & Property,Agency Staff,13000,Direct Employee Expenses,5001,Building surveyor fees and mileage for 6 months General Building,20/05/2022,0167530,"£1,489.36",Revenue,Vivid Resourcing Ltd,76938,,
Chorley Borough Council,http://statistics.data.gov.uk/id/local-authority/30UE,Central Support Services,1009,GROW - Commercial & Property,Agency Staff,13000,Direct Employee Expenses,5001,Building surveyor fees and mileage for 6 months Housing,20/05/2022,0167531,"£1,314.95",Revenue,Vivid Resourcing Ltd,76938,,
Chorley Borough Council,http://statistics.data.gov.uk/id/local-authority/30UE,Central Support Services,1009,GROW - Commercial & Property,Agency Staff,13000,Direct Employee Expenses,5001,Building surveyor fees and mileage for 6 months Housing,27/05/2022,0167585,£985.02,Revenue,Vivid Resourcing Ltd,76938,,
Chorley Borough Council,http://statistics.data.gov.uk/id/local-authority/30UE,Development Control,1091,PLAN - Planning & Development,Agency Staff,13000,Direct Employee Expenses,5001,Contract work - Consultant NAME REDACTED.  April 2022 - March 2023,27/05/2022,0167699,"£1,642.50",Revenue,Vivid Resourcing Ltd,76938,,
Chorley Borough Council,http://statistics.data.gov.uk/id/local-authority/30UE,Central Support Services,1009,CUST - Customer & Digital,Computer Equipment - Security,40106,Communication and Computing,5028,01 apr 2022,20/05/2022,0167374,£980.86,Revenue,Vodafone Ltd,60180,,
Chorley Borough Council,http://statistics.data.gov.uk/id/local-authority/30UE,Democratic Represent and  Mgnt,1007,GROW - Commercial & Property,Water - Metered Supplies,20022,Water Services,5009,12/12/21 - 13/02/2022,13/05/2022,0167400,£660.14,Revenue,WaterPlus ,85217,,
Chorley Borough Council,http://statistics.data.gov.uk/id/local-authority/30UE,Unapportionable Central OHeads,1009,GROW - Commercial & Property,Water - Metered Supplies,20022,Water Services,5009,21/11/21 to 13/3/22,06/05/2022,0167192,"£1,358.01",Revenue,WaterPlus ,84240,,
Chorley Borough Council,http://statistics.data.gov.uk/id/local-authority/30UE,Recognised Cap Grants & Conts,,PLAN - Planning & Development,Contributions Parish Councils,40144,Grants and Subscriptions,5031,CIL Receipt 1/10 - 31/03,13/05/2022,0167332,"£9,637.68",Revenue,Wheelton Parish Council,16189,,
Chorley Borough Council,http://statistics.data.gov.uk/id/local-authority/30UE,Unapportionable Central OHeads,1009,Chief Executive,Postages,40082,Communication and Computing,5028,"Postal Collection from Town Hall and Union Street, April 22 to March 23",20/05/2022,0167188,£289.59,Revenue,Whistl North Limited,67256,,
Chorley Borough Council,http://statistics.data.gov.uk/id/local-authority/30UE,Unapportionable Central OHeads,1009,Chief Executive,Postages,40082,Communication and Computing,5028,,20/05/2022,0167188,£15.65,Revenue,Whistl North Limited,67256,,
Chorley Borough Council,http://statistics.data.gov.uk/id/local-authority/30UE,Elections,1012,GOVN - Policy & Governance,Rent/Hire Of Premises,20017,Premises Rents,5007,room hire for polling station 5 May 2022,20/05/2022,0167540,£256.00,Revenue,Whittle Le Woods Com Hall Trst,16883,,
Chorley Borough Council,http://statistics.data.gov.uk/id/local-authority/30UE,Recognised Cap Grants & Conts,,PLAN - Planning & Development,Contributions Parish Councils,40144,Grants and Subscriptions,5031,cil receipts 1/10/21 to 31/3/22,13/05/2022,0166875,"£5,447.47",Revenue,Whittle-le-Woods Parish Council,18602,,
Chorley Borough Council,http://statistics.data.gov.uk/id/local-authority/30UE,Recognised Cap Grants & Conts,,PLAN - Planning & Development,Contributions Parish Councils,40144,Grants and Subscriptions,5031,cil recepts 1/10/21 to 31/3/22,13/05/2022,0166874,"£17,140.29",Revenue,Withnell Parish Council,16211,,
Chorley Borough Council,http://statistics.data.gov.uk/id/local-authority/30UE,Capital,Capital,GOVN - Policy & Governance,Main Contractor,03007,Capital Expenditure,Capital,"Supply and fit underlay to rug in Drawing Room, 2 technicians. Uplift existing carpets, vacuum any dust/debris ",13/05/2022,0167393,"£1,170.00",Capital,Wrennalls Carpet Care Ltd,19032,,
Chorley Borough Council,http://statistics.data.gov.uk/id/local-authority/30UE,Central Support Services,1009,EARL - Communities,Misc Expenses,40200,Miscellaneous Expenses,5034,Items for Clayton Brook for Sensory session and Clayton Brook Community Cafe,27/05/2022,0167125,£339.58,Revenue,Yorkshire Purchasing Org,18098,,
Chorley Borough Council,http://statistics.data.gov.uk/id/local-authority/30UE,Central Support Services,1009,EARL - Communities,Misc Expenses,40200,Miscellaneous Expenses,5034,,27/05/2022,0167125,£20.95,Revenue,Yorkshire Purchasing Org,18098,,
